Workbook

Sheet HGPS Mouse model -GSE165409
B2: Supplementary Table 3. - HGPS mouse models compared to aged-matched wild-type counterpart.
K4: Ranked by | L4: LMNA-G609G MICE (age: 2 months) | R4: WILD-TYPE MICE (age: 2 months)
B5: ENSEMBL_GENE_ID | C5: SYMBOL | D5: ENTREZ | E5: baseMean | F5: log2FoldChange | G5: lfcSE | H5: stat | I5: pvalue | J5: FDR | K5: # -10xlog10(FDR) | L5: LMNA_02mo_s19 | M5: LMNA_02mo_s22 | N5: LMNA_02mo_s23 | O5: LMNA_02mo_s48 | P5: LMNA_02mo_s49 | Q5: LMNA_02mo_s50 | R5: WT_02mo_s41 | S5: WT_02mo_s42 | T5: WT_02mo_s43 | U5: WT_02mo_s44 | V5: WT_02mo_s45 | W5: WT_02mo_s46
B6: ENSMUSG00000023067 | C6: Cdkn1a | D6: 12575 | E6: 911.5315046 | F6: 2.991618982 | G6: 0.1314154594 | H6: 22.76458946 | I6: 1.03E-114 | J6: 1.75E-110 | K6: =-10*LOG10(J6) -> 1097.561461 | L6: 138.69 | M6: 110.41 | N6: 112.44 | O6: 88.15 | P6: 106.55 | Q6: 120.57 | R6: 17.70 | S6: 13.34 | T6: 13.02 | U6: 12.73 | V6: 13.18 | W6: 14.40
B7: ENSMUSG00000005413 | C7: Hmox1 | D7: 15368 | E7: 374.5316245 | F7: 2.495009757 | G7: 0.1286487823 | H7: 19.39396325 | I7: 8.68E-84 | J7: 7.39E-80 | K7: =-10*LOG10(J7) -> 791.3111601 | L7: 51.18 | M7: 39.42 | N7: 52.45 | O7: 37.02 | P7: 43.07 | Q7: 44.38 | R7: 7.99 | S7: 6.10 | T7: 9.19 | U7: 6.69 | V7: 8.26 | W7: 8.67
B8: ENSMUSG00000034457 | C8: Eda2r | D8: 245527 | E8: 285.6962412 | F8: 2.146801985 | G8: 0.1182014982 | H8: 18.16222313 | I8: 1.03E-73 | J8: 5.84E-70 | K8: 692.3375492 | L8: 34.48 | M8: 30.07 | N8: 31.15 | O8: 30.41 | P8: 29.71 | Q8: 29.34 | R8: 5.85 | S8: 7.24 | T8: 6.96 | U8: 7.25 | V8: 6.51 | W8: 7.67
B9: ENSMUSG00000020326 | C9: Ccng1 | D9: 12450 | E9: 4951.124037 | F9: 1.489638836 | G9: 0.08250752857 | H9: 18.05458074 | I9: 7.26E-73 | J9: 3.09E-69 | K9: 685.0958705 | L9: 488.83 | M9: 426.70 | N9: 485.84 | O9: 424.84 | P9: 457.30 | Q9: 401.43 | R9: 173.39 | S9: 182.88 | T9: 164.09 | U9: 142.59 | V9: 133.11 | W9: 154.15
B10: ENSMUSG00000024640 | C10: Psat1 | D10: 107272 | E10: 286.8172169 | F10: 2.400130169 | G10: 0.1358258589 | H10: 17.67064231 | I10: 7.06E-70 | J10: 2.41E-66 | K10: 656.1876592 | L10: 34.25 | M10: 32.70 | N10: 40.67 | O10: 29.57 | P10: 31.80 | Q10: 30.85 | R10: 8.61 | S10: 7.18 | T10: 6.62 | U10: 4.67 | V10: 5.64 | W10: 4.78
B11: ENSMUSG00000014846 | C11: Tppp3 | D11: 67971 | E11: 1273.344789 | F11: -1.688259677 | G11: 0.1014406306 | H11: -16.64283499 | I11: 3.41E-62 | J11: 9.69E-59 | K11: 580.1382491 | L11: 33.41 | M11: 33.83 | N11: 31.89 | O11: 33.07 | P11: 42.61 | Q11: 33.31 | R11: 101.30 | S11: 105.81 | T11: 109.35 | U11: 101.42 | V11: 135.88 | W11: 110.01
B12: ENSMUSG00000029304 | C12: Spp1 | D12: 20750 | E12: 200.6742784 | F12: 5.1308516 | G12: 0.335875898 | H12: 15.27603389 | I12: 1.10E-52 | J12: 2.69E-49 | K12: 485.7041514 | L12: 26.68 | M12: 23.52 | N12: 43.67 | O12: 15.30 | P12: 15.92 | Q12: 34.17 | R12: 0.62 | S12: 1.39 | T12: 0.49 | U12: 0.73 | V12: 0.72 | W12: 0.60
B13: ENSMUSG00000029161 | C13: Cgref1 | D13: 68567 | E13: 368.5230351 | F13: 1.775606954 | G13: 0.1196991363 | H13: 14.83391618 | I13: 8.84E-50 | J13: 1.88E-46 | K13: 457.2506752 | L13: 42.32 | M13: 39.12 | N13: 46.08 | O13: 34.82 | P13: 46.22 | Q13: 35.28 | R13: 13.13 | S13: 12.61 | T13: 13.16 | U13: 10.88 | V13: 12.26 | W13: 8.77
B14: ENSMUSG00000050503 | C14: Fbxl22 | D14: 74165 | E14: 1334.50403 | F14: -1.577934343 | G14: 0.1070776105 | H14: -14.73636118 | I14: 3.77E-49 | J14: 7.13E-46 | K14: 451.4696933 | L14: 35.54 | M14: 26.32 | N14: 30.13 | O14: 32.06 | P14: 36.58 | Q14: 28.89 | R14: 81.46 | S14: 115.82 | T14: 84.83 | U14: 99.41 | V14: 100.13 | W14: 79.32
B15: ENSMUSG00000004655 | C15: Aqp1 | D15: 11826 | E15: 9902.273674 | F15: 1.303353711 | G15: 0.09114282759 | H15: 14.30012372 | I15: 2.18E-46 | J15: 3.72E-43 | K15: 424.2923619 | L15: 883.66 | M15: 1007.27 | N15: 1089.12 | O15: 748.55 | P15: 1093.09 | Q15: 814.63 | R15: 411.10 | S15: 385.86 | T15: 387.39 | U15: 385.88 | V15: 359.53 | W15: 341.88
B16: ENSMUSG00000003873 | C16: Bax | D16: 12028 | E16: 415.5688188 | F16: 0.9673864965 | G16: 0.06998057173 | H16: 13.8236438 | I16: 1.84E-43 | J16: 2.84E-40 | K16: 395.4619474 | L16: 35.26 | M16: 31.12 | N16: 37.02 | O16: 31.64 | P16: 32.72 | Q16: 33.62 | R16: 17.61 | S16: 16.96 | T16: 16.44 | U16: 17.40 | V16: 16.98 | W16: 16.59
B17: ENSMUSG00000030609 | C17: Aen | D17: 68048 | E17: 675.4035329 | F17: 1.617958514 | G17: 0.117731818 | H17: 13.74274636 | I17: 5.63E-43 | J17: 7.99E-40 | K17: 390.9721119 | L17: 69.29 | M17: 51.18 | N17: 62.20 | O17: 54.92 | P17: 64.69 | Q17: 56.46 | R17: 18.98 | S17: 21.00 | T17: 13.86 | U17: 19.33 | V17: 21.03 | W17: 21.32
B18: ENSMUSG00000022385 | C18: Gtse1 | D18: 29870 | E18: 51.89327853 | F18: 2.9728781 | G18: 0.2184439774 | H18: 13.60933881 | I18: 3.52E-42 | J18: 4.62E-39 | K18: 383.3541613 | L18: 7.01 | M18: 5.55 | N18: 7.53 | O18: 5.38 | P18: 5.61 | Q18: 6.89 | R18: 0.76 | S18: 0.54 | T18: 0.56 | U18: 0.97 | V18: 0.87 | W18: 1.05
B19: ENSMUSG00000011179 | C19: Odc1 | D19: 18263 | E19: 3037.440877 | F19: 1.050550485 | G19: 0.0795791051 | H19: 13.20133574 | I19: 8.62E-40 | J19: 1.05E-36 | K19: 359.7918654 | L19: 254.34 | M19: 248.80 | N19: 256.53 | O19: 228.43 | P19: 275.87 | Q19: 211.86 | R19: 121.86 | S19: 126.81 | T19: 129.41 | U19: 122.61 | V19: 98.85 | W19: 109.01
B20: ENSMUSG00000031166 | C20: Wdr13 | D20: 73447 | E20: 1215.340552 | F20: -0.7641227126 | G20: 0.05963375122 | H20: -12.8135946 | I20: 1.38E-37 | J20: 1.56E-34 | K20: 338.0597463 | L20: 46.25 | M20: 42.71 | N20: 38.87 | O20: 47.27 | P20: 45.55 | Q20: 43.53 | R20: 79.98 | S20: 75.14 | T20: 72.57 | U20: 78.38 | V20: 61.96 | W20: 77.27
B21: ENSMUSG00000042901 | C21: Aida | D21: 108909 | E21: 1682.16199 | F21: 0.8761932489 | G21: 0.06843086688 | H21: 12.80406473 | I21: 1.56E-37 | J21: 1.66E-34 | K21: 337.8067124 | L21: 126.64 | M21: 135.31 | N21: 130.65 | O21: 135.94 | P21: 136.59 | Q21: 110.41 | R21: 71.94 | S21: 73.45 | T21: 75.29 | U21: 69.52 | V21: 64.94 | W21: 64.57
B22: ENSMUSG00000040010 | C22: Slc7a5 | D22: 20539 | E22: 353.5267912 | F22: 1.532515276 | G22: 0.1198522735 | H22: 12.78670175 | I22: 1.95E-37 | J22: 1.85E-34 | K22: 337.3270479 | L22: 34.70 | M22: 31.91 | N22: 31.10 | O22: 32.29 | P22: 36.58 | Q22: 33.16 | R22: 12.80 | S22: 9.11 | T22: 11.14 | U22: 13.45 | V22: 9.90 | W22: 12.16
B23: ENSMUSG00000032702 | C23: Kank1 | D23: 107351 | E23: 10128.71494 | F23: -0.7190038726 | G23: 0.05623221162 | H23: -12.78633459 | I23: 1.95E-37 | J23: 1.85E-34 | K23: 337.3270479 | L23: 344.20 | M23: 379.77 | N23: 362.92 | O23: 378.96 | P23: 393.36 | Q23: 333.44 | R23: 593.81 | S23: 595.72 | T23: 563.95 | U23: 641.73 | V23: 575.07 | W23: 608.87
B24: ENSMUSG00000086843 | C24: E030013I19Rik | D24: 338535 | E24: 4900.331452 | F24: -1.564554109 | G24: 0.1239145991 | H24: -12.62606763 | I24: 1.52E-36 | J24: 1.36E-33 | K24: 328.6638336 | L24: 102.31 | M24: 90.26 | N24: 85.63 | O24: 162.36 | P24: 134.63 | Q24: 118.91 | R24: 321.17 | S24: 359.06 | T24: 354.51 | U24: 350.19 | V24: 304.28 | W24: 341.73
B25: ENSMUSG00000042613 | C25: Pbxip1 | D25: 229534 | E25: 13557.20833 | F25: -0.8500470326 | G25: 0.06813556202 | H25: -12.47582037 | I25: 1.01E-35 | J25: 8.62E-33 | K25: 320.6455613 | L25: 445.28 | M25: 426.16 | N25: 430.53 | O25: 500.12 | P25: 521.37 | Q25: 454.57 | R25: 745.64 | S25: 795.80 | T25: 810.78 | U25: 880.03 | V25: 840.32 | W25: 883.59
B26: ENSMUSG00000071176 | C26: Arhgef10 | D26: 234094 | E26: 1337.102358 | F26: -0.7901127691 | G26: 0.0636172902 | H26: -12.41978033 | I26: 2.04E-35 | J26: 1.66E-32 | K26: 317.8086159 | L26: 50.90 | M26: 49.89 | N26: 45.80 | O26: 56.87 | P26: 56.52 | Q26: 52.69 | R26: 87.93 | S26: 88.24 | T26: 90.47 | U26: 95.14 | V26: 89.72 | W26: 85.00
B27: ENSMUSG00000059187 | C27: Tafa1 | D27: 320265 | E27: 382.5145334 | F27: -1.652847759 | G27: 0.1334553889 | H27: -12.38502073 | I27: 3.15E-35 | J27: 2.44E-32 | K27: 316.1263772 | L27: 6.00 | M27: 6.84 | N27: 4.99 | O27: 5.06 | P27: 5.53 | Q27: 4.73 | R27: 15.04 | S27: 21.31 | T27: 14.49 | U27: 13.86 | V27: 16.88 | W27: 21.37
B28: ENSMUSG00000023064 | C28: Sncg | D28: 20618 | E28: 403.848144 | F28: 2.502283338 | G28: 0.2035386811 | H28: 12.29389581 | I28: 9.77E-35 | J28: 7.24E-32 | K28: 311.4044178 | L28: 46.30 | M28: 38.17 | N28: 52.50 | O28: 30.09 | P28: 41.48 | Q28: 34.67 | R28: 6.38 | S28: 5.07 | T28: 8.36 | U28: 7.33 | V28: 5.95 | W28: 9.47
B29: ENSMUSG00000009092 | C29: Derl3 | D29: 70377 | E29: 36.32391727 | F29: 4.095578979 | G29: 0.3336681891 | H29: 12.27440647 | I29: 1.24E-34 | J29: 8.76E-32 | K29: 310.5763822 | L29: 7.12 | M29: 5.01 | N29: 6.10 | O29: 4.21 | P29: 5.28 | Q29: 3.62 | R29: 0.24 | S29: 0.48 | T29: 0.28 | U29: 0.56 | V29: 0.21 | W29: 0.15
B30: ENSMUSG00000027335 | C30: Adra1d | D30: 11550 | E30: 353.8708659 | F30: -1.635812414 | G30: 0.1332992542 | H30: -12.27172968 | I30: 1.28E-34 | J30: 8.76E-32 | K30: 310.5763822 | L30: 10.54 | M30: 8.18 | N30: 8.09 | O30: 8.95 | P30: 8.97 | Q30: 7.15 | R30: 30.12 | S30: 21.91 | T30: 29.74 | U30: 31.82 | V30: 25.85 | W30: 20.68
B31: ENSMUSG00000061171 | C31: Slc38a11 | D31: 320106 | E31: 483.0658682 | F31: -1.268711528 | G31: 0.1034269452 | H31: -12.26674079 | I31: 1.37E-34 | J31: 8.96E-32 | K31: 310.4791413 | L31: 13.68 | M31: 12.22 | N31: 10.35 | O31: 15.89 | P31: 14.50 | Q31: 15.10 | R31: 28.22 | S31: 34.16 | T31: 35.80 | U31: 32.87 | V31: 31.75 | W31: 32.53
B32: ENSMUSG00000026864 | C32: Hspa5 | D32: 14828 | E32: 18151.31213 | F32: 1.38551588 | G32: 0.1138428653 | H32: 12.17042347 | I32: 4.47E-34 | J32: 2.76E-31 | K32: 305.5888251 | L32: 1662.65 | M32: 1793.68 | N32: 2096.58 | O32: 1405.39 | P32: 1600.67 | Q32: 1427.61 | R32: 667.42 | S32: 597.05 | T32: 558.65 | U32: 786.50 | V32: 577.38 | W32: 611.96
B33: ENSMUSG00000025089 | C33: Gfra1 | D33: 14585 | E33: 94.0514492 | F33: 2.352093861 | G33: 0.193283205 | H33: 12.169158 | I33: 4.54E-34 | J33: 2.76E-31 | K33: 305.5888251 | L33: 12.05 | M33: 9.72 | N33: 11.51 | O33: 10.18 | P33: 8.88 | Q33: 15.70 | R33: 2.81 | S33: 2.72 | T33: 2.16 | U33: 2.82 | V33: 1.13 | W33: 1.74
B34: ENSMUSG00000001270 | C34: Ckb | D34: 12709 | E34: 2499.025867 | F34: -1.172284445 | G34: 0.09690507706 | H34: -12.09724485 | I34: 1.09E-33 | J34: 6.42E-31 | K34: 301.9264439 | L34: 68.50 | M34: 66.15 | N34: 68.40 | O34: 64.65 | P34: 85.73 | Q34: 81.72 | R34: 174.00 | S34: 141.66 | T34: 134.35 | U34: 186.17 | V34: 178.71 | W34: 157.29
B35: ENSMUSG00000030641 | C35: Ddias | D35: 74041 | E35: 35.39884867 | F35: 3.231630684 | G35: 0.2678014488 | H35: 12.06726363 | I35: 1.57E-33 | J35: 8.93E-31 | K35: 300.4898511 | L35: 4.60 | M35: 4.34 | N35: 4.62 | O35: 5.06 | P35: 3.98 | Q35: 5.13 | R35: 0.76 | S35: 0.36 | T35: 0.35 | U35: 0.56 | V35: 0.21 | W35: 0.65
B36: ENSMUSG00000020458 | C36: Rtn4 | D36: 68585 | E36: 4930.47852 | F36: 0.6366632847 | G36: 0.05289293609 | H36: 12.03683009 | I36: 2.28E-33 | J36: 1.25E-30 | K36: 299.0285014 | L36: 359.95 | M36: 351.91 | N36: 370.31 | O36: 340.71 | P36: 331.31 | Q36: 336.41 | R36: 239.90 | S36: 221.99 | T36: 242.17 | U36: 218.07 | V36: 191.84 | W36: 221.46
B37: ENSMUSG00000032648 | C37: Pygm | D37: 19309 | E37: 1487.994264 | F37: -1.126130911 | G37: 0.09528900581 | H37: -11.81805709 | I37: 3.15E-32 | J37: 1.68E-29 | K37: 287.755315 | L37: 43.50 | M37: 36.37 | N37: 35.45 | O37: 48.79 | P37: 52.12 | Q37: 38.30 | R37: 82.79 | S37: 89.63 | T37: 91.94 | U37: 94.09 | V37: 93.25 | W37: 98.20
B38: ENSMUSG00000038508 | C38: Gdf15 | D38: 23886 | E38: 48.95977255 | F38: 3.839164506 | G38: 0.3249758097 | H38: 11.81369318 | I38: 3.32E-32 | J38: 1.71E-29 | K38: 287.6634355 | L38: 8.24 | M38: 5.63 | N38: 8.50 | O38: 2.92 | P38: 6.70 | Q38: 8.81 | R38: 0.48 | S38: 0.48 | T38: 0.35 | U38: 0.56 | V38: 0.36 | W38: 0.60
B39: ENSMUSG00000014905 | C39: Dnajb9 | D39: 27362 | E39: 793.5111863 | F39: 0.9079358102 | G39: 0.07766145497 | H39: 11.69094515 | I39: 1.42E-31 | J39: 7.11E-29 | K39: 281.4833396 | L39: 59.81 | M39: 60.98 | N39: 60.82 | O39: 59.56 | P39: 59.50 | Q39: 60.39 | R39: 32.02 | S39: 31.33 | T39: 35.10 | U39: 32.87 | V39: 26.88 | W39: 32.98
B40: ENSMUSG00000025912 | C40: Mybl1 | D40: 17864 | E40: 323.9726366 | F40: 1.553201253 | G40: 0.1330755586 | H40: 11.67157417 | I40: 1.78E-31 | J40: 8.67E-29 | K40: 280.6194204 | L40: 34.20 | M40: 28.91 | N40: 32.16 | O40: 31.48 | P40: 25.98 | Q40: 21.84 | R40: 9.94 | S40: 9.54 | T40: 12.89 | U40: 9.43 | V40: 8.62 | W40: 8.77
B41: ENSMUSG00000001020 | C41: S100a4 | D41: 20198 | E41: 3258.450384 | F41: 1.549539501 | G41: 0.1352325815 | H41: 11.45832967 | I41: 2.14E-30 | J41: 1.01E-27 | K41: 269.9524316 | L41: 283.60 | M41: 325.17 | N41: 354.64 | O41: 309.52 | P41: 347.44 | Q41: 292.58 | R41: 117.53 | S41: 75.45 | T41: 147.93 | U41: 116.89 | V41: 85.36 | W41: 106.12
B42: ENSMUSG00000052609 | C42: Plekhg3 | D42: 263406 | E42: 4962.81007 | F42: -1.093986562 | G42: 0.09569532899 | H42: -11.43197451 | I42: 2.89E-30 | J42: 1.33E-27 | K42: 268.7515698 | L42: 148.67 | M42: 136.39 | N42: 135.78 | O42: 169.27 | P42: 146.11 | Q42: 127.97 | R42: 293.19 | S42: 290.07 | T42: 357.51 | U42: 340.44 | V42: 273.81 | W42: 274.42
B43: ENSMUSG00000023805 | C43: Synj2 | D43: 20975 | E43: 1640.315926 | F43: -0.8191168511 | G43: 0.07171134745 | H43: -11.42241612 | I43: 3.23E-30 | J43: 1.45E-27 | K43: 268.3894488 | L43: 59.42 | M43: 56.85 | N43: 58.41 | O43: 58.81 | P43: 59.41 | Q43: 49.67 | R43: 90.02 | S43: 113.77 | T43: 95.98 | U43: 109.16 | V43: 91.92 | W43: 99.10
B44: ENSMUSG00000105987 | C44: AI506816 | D44: 433855 | E44: 1077.392363 | F44: 1.18215295 | G44: 0.1035367146 | H44: 11.41771742 | I44: 3.41E-30 | J44: 1.49E-27 | K44: 268.2674582 | L44: 98.38 | M44: 88.63 | N44: 112.35 | O44: 87.28 | P44: 103.12 | Q44: 91.39 | R44: 43.68 | S44: 41.65 | T44: 37.26 | U44: 42.45 | V44: 49.35 | W44: 39.41
B45: ENSMUSG00000079105 | C45: C7 | D45: 109828 | E45: 2429.59051 | F45: -1.47422221 | G45: 0.1296469565 | H45: -11.37105143 | I45: 5.83E-30 | J45: 2.48E-27 | K45: 266.0506146 | L45: 52.19 | M45: 69.36 | N45: 51.85 | O45: 71.65 | P45: 80.91 | Q45: 50.88 | R45: 142.65 | S45: 167.07 | T45: 185.06 | U45: 171.83 | V45: 171.89 | W45: 197.44
B46: ENSMUSG00000072258 | C46: Taf1a | D46: 21339 | E46: 472.7390681 | F46: -0.9485071267 | G46: 0.08358678633 | H46: -11.34757261 | I46: 7.63E-30 | J46: 3.17E-27 | K46: 264.9907329 | L46: 12.61 | M46: 14.26 | N46: 13.40 | O46: 16.66 | P46: 17.35 | Q46: 14.04 | R46: 27.12 | S46: 29.88 | T46: 27.58 | U46: 28.68 | V46: 29.39 | W46: 26.95
B47: ENSMUSG00000019467 | C47: Arhgef25 | D47: 52666 | E47: 1404.993123 | F47: -0.880130652 | G47: 0.07793199533 | H47: -11.29357266 | I47: 1.41E-29 | J47: 5.73E-27 | K47: 262.4200956 | L47: 47.71 | M47: 42.59 | N47: 44.18 | O47: 57.45 | P47: 53.63 | Q47: 47.30 | R47: 89.07 | S47: 88.84 | T47: 94.17 | U47: 90.31 | V47: 82.84 | W47: 89.33
B48: ENSMUSG00000034377 | C48: Tulp4 | D48: 68842 | E48: 4448.001554 | F48: 0.7427338822 | G48: 0.06611427783 | H48: 11.23409204 | I48: 2.77E-29 | J48: 1.10E-26 | K48: 259.5900163 | L48: 357.10 | M48: 360.38 | N48: 358.80 | O48: 321.51 | P48: 316.18 | Q48: 280.15 | R48: 198.51 | S48: 202.62 | T48: 211.38 | U48: 210.42 | V48: 174.51 | W48: 186.63
B49: ENSMUSG00000030102 | C49: Itpr1 | D49: 16438 | E49: 11661.83843 | F49: -0.9189485571 | G49: 0.08209365402 | H49: -11.19390491 | I49: 4.37E-29 | J49: 1.69E-26 | K49: 257.7173488 | L49: 354.35 | M49: 408.22 | N49: 333.85 | O49: 458.88 | P49: 438.86 | Q49: 368.26 | R49: 658.19 | S49: 832.20 | T49: 717.31 | U49: 728.42 | V49: 754.76 | W49: 732.53
B50: ENSMUSG00000028970 | C50: Abcb1b | D50: 18669 | E50: 372.7784727 | F50: 1.066477954 | G50: 0.09543448006 | H50: 11.17497526 | I50: 5.41E-29 | J50: 2.05E-26 | K50: 256.8882322 | L50: 32.07 | M50: 25.07 | N50: 29.44 | O50: 34.72 | P50: 27.82 | Q50: 31.10 | R50: 13.94 | S50: 14.91 | T50: 16.44 | U50: 14.50 | V50: 12.88 | W50: 12.90
B51: ENSMUSG00000086429 | C51: Gt(ROSA)26Sor | D51: 14910 | E51: 150.12896 | F51: 1.447288113 | G51: 0.1299796398 | H51: 11.13472937 | I51: 8.50E-29 | J51: 3.15E-26 | K51: 255.0185499 | L51: 13.51 | M51: 16.89 | N51: 13.54 | O51: 17.80 | P51: 13.74 | Q51: 10.92 | R51: 5.23 | S51: 5.98 | T51: 5.36 | U51: 5.56 | V51: 3.95 | W51: 5.53
B52: ENSMUSG00000027313 | C52: Chac1 | D52: 69065 | E52: 55.55183148 | F52: 2.581441526 | G52: 0.2333410179 | H52: 11.06295648 | I52: 1.90E-28 | J52: 6.88E-26 | K52: 251.6247315 | L52: 7.23 | M52: 4.55 | N52: 9.57 | O52: 5.35 | P52: 7.37 | Q52: 6.69 | R52: 1.05 | S52: 1.21 | T52: 0.77 | U52: 0.89 | V52: 1.33 | W52: 1.40
B53: ENSMUSG00000018830 | C53: Myh11 | D53: 17880 | E53: 150456.345 | F53: -1.169243441 | G53: 0.1061323762 | H53: -11.01684033 | I53: 3.17E-28 | J53: 1.13E-25 | K53: 249.4872401 | L53: 3832.14 | M53: 3993.74 | N53: 3397.96 | O53: 5363.73 | P53: 5291.88 | Q53: 3904.00 | R53: 8566.98 | S53: 9392.70 | T53: 9512.02 | U53: 9977.50 | V53: 9856.65 | W53: 10012.69
B54: ENSMUSG00000041801 | C54: Phlda3 | D54: 27280 | E54: 947.2024239 | F54: 1.547900303 | G54: 0.1409403362 | H54: 10.98266362 | I54: 4.63E-28 | J54: 1.61E-25 | K54: 247.930843 | L54: 90.31 | M54: 82.34 | N54: 104.26 | O54: 65.65 | P54: 78.31 | Q54: 77.75 | R54: 36.30 | S54: 29.39 | T54: 21.87 | U54: 23.76 | V54: 31.34 | W54: 26.56
B55: ENSMUSG00000025283 | C55: Sat1 | D55: 20229 | E55: 2179.671966 | F55: 0.961526988 | G55: 0.08779452028 | H55: 10.95201597 | I55: 6.50E-28 | J55: 2.21E-25 | K55: 246.5468754 | L55: 161.84 | M55: 153.95 | N55: 173.72 | O55: 175.39 | P55: 166.72 | Q55: 176.68 | R55: 92.07 | S55: 87.82 | T55: 88.52 | U55: 83.30 | V55: 74.89 | W55: 87.19
B56: ENSMUSG00000024480 | C56: Ap3s1 | D56: 11777 | E56: 699.0946693 | F56: 0.978813468 | G56: 0.08947877357 | H56: 10.93905771 | I56: 7.50E-28 | J56: 2.51E-25 | K56: 246.0118361 | L56: 54.66 | M56: 55.93 | N56: 60.36 | O56: 55.41 | P56: 46.43 | Q56: 57.97 | R56: 31.50 | S56: 28.55 | T56: 29.46 | U56: 22.96 | V56: 27.03 | W56: 26.75
B57: ENSMUSG00000020048 | C57: Hsp90b1 | D57: 22027 | E57: 12156.89303 | F57: 0.694189573 | G57: 0.06347205608 | H57: 10.93693218 | I57: 7.68E-28 | J57: 2.52E-25 | K57: 245.9943683 | L57: 895.26 | M57: 872.00 | N57: 944.56 | O57: 905.79 | P57: 903.83 | Q57: 809.09 | R57: 567.31 | S57: 570.73 | T57: 512.89 | U57: 553.12 | V57: 520.95 | W57: 543.56
B58: ENSMUSG00000072966 | C58: Gprasp2 | D58: 245607 | E58: 258.5843738 | F58: -1.622717798 | G58: 0.1484837918 | H58: -10.92858539 | I58: 8.41E-28 | J58: 2.71E-25 | K58: 245.6775223 | L58: 3.70 | M58: 3.59 | N58: 3.60 | O58: 7.81 | P58: 4.99 | Q58: 5.43 | R58: 16.80 | S58: 15.99 | T58: 15.39 | U58: 13.21 | V58: 14.31 | W58: 13.75
B59: ENSMUSG00000051506 | C59: Wdfy4 | D59: 545030 | E59: 247.1058009 | F59: 1.639763067 | G59: 0.1505645531 | H59: 10.89076435 | I59: 1.28E-27 | J59: 4.03E-25 | K59: 243.9519229 | L59: 27.97 | M59: 18.35 | N59: 23.75 | O59: 18.09 | P59: 18.60 | Q59: 29.24 | R59: 7.66 | S59: 5.85 | T59: 8.08 | U59: 6.53 | V59: 8.10 | W59: 6.93
B60: ENSMUSG00000009905 | C60: Kdsr | D60: 70750 | E60: 1108.703308 | F60: 0.6268060024 | G60: 0.05769871012 | H60: 10.8634318 | I60: 1.72E-27 | J60: 5.33E-25 | K60: 242.7297239 | L60: 79.94 | M60: 78.29 | N60: 72.88 | O60: 78.78 | P60: 74.79 | Q60: 70.05 | R60: 49.91 | S60: 48.41 | T60: 52.10 | U60: 48.98 | V60: 44.93 | W60: 48.03
B61: ENSMUSG00000036781 | C61: Rps27l | D61: 67941 | E61: 1088.075553 | F61: 0.9966880924 | G61: 0.09236672106 | H61: 10.79055401 | I61: 3.81E-27 | J61: 1.16E-24 | K61: 239.3524341 | L61: 102.20 | M61: 80.46 | N61: 108.14 | O61: 80.31 | P61: 87.15 | Q61: 90.53 | R61: 46.11 | S61: 48.77 | T61: 43.39 | U61: 45.84 | V61: 42.88 | W61: 45.89
B62: ENSMUSG00000004221 | C62: Ikbkg | D62: 16151 | E62: 1198.098264 | F62: 0.6156536691 | G62: 0.05780358211 | H62: 10.65078749 | I62: 1.73E-26 | J62: 5.17E-24 | K62: 232.8661982 | L62: 80.78 | M62: 82.55 | N62: 77.36 | O62: 86.50 | P62: 77.85 | Q62: 77.75 | R62: 51.96 | S62: 54.56 | T62: 59.34 | U62: 50.35 | V62: 44.22 | W62: 52.61
B63: ENSMUSG00000009687 | C63: Fxyd5 | D63: 18301 | E63: 823.3996631 | F63: 1.777281536 | G63: 0.1671315374 | H63: 10.63402853 | I63: 2.07E-26 | J63: 6.08E-24 | K63: 232.1604174 | L63: 81.29 | M63: 80.21 | N63: 110.45 | O63: 58.75 | P63: 87.24 | Q63: 64.92 | R63: 24.98 | S63: 20.82 | T63: 23.89 | U63: 22.23 | V63: 22.52 | W63: 25.41
B64: ENSMUSG00000028613 | C64: Lrp8 | D64: 16975 | E64: 127.50653 | F64: 1.788157717 | G64: 0.1684396813 | H64: 10.61601223 | I64: 2.51E-26 | J64: 7.25E-24 | K64: 231.3960768 | L64: 13.96 | M64: 13.22 | N64: 14.14 | O64: 10.21 | P64: 11.15 | Q64: 8.96 | R64: 2.71 | S64: 2.53 | T64: 4.46 | U64: 4.11 | V64: 2.67 | W64: 4.23
B65: ENSMUSG00000037300 | C65: Ttc13 | D65: 234875 | E65: 555.2327532 | F65: 0.8296484789 | G65: 0.07818431213 | H65: 10.61144437 | I65: 2.64E-26 | J65: 7.49E-24 | K65: 231.2566772 | L65: 42.66 | M65: 44.17 | N65: 49.22 | O65: 40.20 | P65: 42.86 | Q65: 39.15 | R65: 23.70 | S65: 27.04 | T65: 20.55 | U65: 24.89 | V65: 24.21 | W65: 23.72
B66: ENSMUSG00000023232 | C66: Serinc2 | D66: 230779 | E66: 71.17944436 | F66: 4.60394877 | G66: 0.4341651259 | H66: 10.60414228 | I66: 2.85E-26 | J66: 7.87E-24 | K66: 231.0416998 | L66: 7.29 | M66: 6.05 | N66: 7.72 | O66: 2.11 | P66: 4.99 | Q66: 2.42 | R66: 0.38 | S66: 0.18 | T66: 0.14 | U66: 0.16 | V66: 0.05 | W66: 0.30
B67: ENSMUSG00000040118 | C67: Cacna2d1 | D67: 12293 | E67: 3732.202202 | F67: -0.8301233618 | G67: 0.07828580052 | H67: -10.60375389 | I67: 2.86E-26 | J67: 7.87E-24 | K67: 231.0416998 | L67: 121.31 | M67: 138.77 | N67: 110.96 | O67: 156.23 | P67: 130.31 | Q67: 115.84 | R67: 218.44 | S67: 234.55 | T67: 253.94 | U67: 228.79 | V67: 195.64 | W67: 232.27
B68: ENSMUSG00000001494 | C68: Sost | D68: 74499 | E68: 14288.62738 | F68: -0.7746328195 | G68: 0.07313814827 | H68: -10.59136494 | I68: 3.27E-26 | J68: 8.84E-24 | K68: 230.5360013 | L68: 516.19 | M68: 466.20 | N68: 527.67 | O68: 487.89 | P68: 497.15 | Q68: 469.41 | R68: 861.50 | S68: 847.23 | T68: 840.10 | U68: 902.50 | V68: 786.05 | W68: 796.30
B69: ENSMUSG00000044533 | C69: Rps2 | D69: 16898 | E69: 11891.90111 | F69: 0.6914265664 | G69: 0.06538654765 | H69: 10.57444675 | I69: 3.91E-26 | J69: 1.04E-23 | K69: 229.8199952 | L69: 858.71 | M69: 812.81 | N69: 926.59 | O69: 804.03 | P69: 1015.66 | Q69: 846.78 | R69: 558.98 | S69: 528.78 | T69: 537.90 | U69: 524.76 | V69: 535.57 | W69: 548.09
B70: ENSMUSG00000029122 | C70: Evc | D70: 59056 | E70: 1212.201206 | F70: -0.7822484219 | G70: 0.07443177929 | H70: -10.50960261 | I70: 7.80E-26 | J70: 2.05E-23 | K70: 226.8922885 | L70: 36.44 | M70: 40.88 | N70: 41.32 | O70: 45.03 | P70: 48.48 | Q70: 43.08 | R70: 67.52 | S70: 67.42 | T70: 71.74 | U70: 75.56 | V70: 73.61 | W70: 79.17
B71: ENSMUSG00000034220 | C71: Gpc1 | D71: 14733 | E71: 919.3597209 | F71: 1.03381165 | G71: 0.09852713815 | H71: 10.49265887 | I71: 9.34E-26 | J71: 2.41E-23 | K71: =-10*LOG10(J71) -> 226.1789752 | L71: 82.46 | M71: 69.36 | N71: 78.01 | O71: 59.07 | P71: 82.88 | Q71: 78.50 | R71: 35.69 | S71: 32.71 | T71: 35.45 | U71: 37.54 | V71: 34.93 | W71: 41.60
B72: ENSMUSG00000079037 | C72: Prnp | D72: 19122 | E72: 2440.885732 | F72: 0.9115032977 | G72: 0.08714852599 | H72: 10.45919351 | I72: 1.33E-25 | J72: 3.38E-23 | K72: 224.7081001 | L72: 174.29 | M72: 163.63 | N72: 215.77 | O72: 156.56 | P72: 165.13 | Q72: 186.40 | R72: 98.16 | S72: 86.79 | T72: 98.83 | U72: 87.97 | V72: 84.64 | W72: 103.53
B73: ENSMUSG00000040918 | C73: Slc19a2 | D73: 116914 | E73: 248.2101746 | F73: 1.092713528 | G73: 0.1048387271 | H73: 10.42280423 | I73: 1.95E-25 | J73: 4.89E-23 | K73: 223.1075102 | L73: 22.03 | M73: 18.35 | N73: 20.52 | O73: 21.72 | P73: 23.05 | Q73: 19.63 | R73: 12.13 | S73: 10.80 | T73: 9.19 | U73: 9.75 | V73: 7.03 | W73: 9.42
B74: ENSMUSG00000028124 | C74: Gclm | D74: 14630 | E74: 813.7521369 | F74: 0.7985402654 | G74: 0.07695321212 | H74: 10.3769582 | I74: 3.16E-25 | J74: 7.80E-23 | K74: 221.0814187 | L74: 61.72 | M74: 65.86 | N74: 64.93 | O74: 58.45 | P74: 56.52 | Q74: 51.28 | R74: 35.11 | S74: 34.46 | T74: 38.59 | U74: 34.00 | V74: 30.26 | W74: 32.63
B75: ENSMUSG00000039470 | C75: Zdhhc2 | D75: 70546 | E75: 262.7328437 | F75: 0.7961969402 | G75: 0.07689665043 | H75: 10.35411732 | I75: 4.01E-25 | J75: 9.76E-23 | K75: 220.1062819 | L75: 20.35 | M75: 22.77 | N75: 21.67 | O75: 22.86 | P75: 23.72 | Q75: 21.19 | R75: 14.23 | S75: 13.76 | T75: 12.33 | U75: 11.12 | V75: 12.11 | W75: 12.01
B76: ENSMUSG00000026768 | C76: Itga8 | D76: 241226 | E76: 99201.34816 | F76: -0.9252103928 | G76: 0.08938660061 | H76: -10.35066091 | I76: 4.16E-25 | J76: 9.97E-23 | K76: 220.0110611 | L76: 3045.12 | M76: 3392.86 | N76: 2994.97 | O76: 4532.60 | P76: 4106.31 | Q76: 3386.23 | R76: 6223.04 | S76: 7293.98 | T76: 6828.17 | U76: 6820.55 | V76: 6286.60 | W76: 6877.10
B77: ENSMUSG00000023272 | C77: Creld2 | D77: 76737 | E77: 633.3948199 | F77: 0.9596258722 | G77: 0.0929783689 | H77: 10.32095834 | I77: 5.67E-25 | J77: 1.33E-22 | K77: 218.7745981 | L77: 50.96 | M77: 53.22 | N77: 58.37 | O77: 45.13 | P77: 47.64 | Q77: 49.06 | R77: 29.93 | S77: 27.64 | T77: 22.91 | U77: 27.87 | V77: 22.98 | W77: 24.21
B78: ENSMUSG00000037725 | C78: Ckap2 | D78: 80986 | E78: 49.36194383 | F78: 2.513871381 | G78: 0.243575604 | H78: 10.32070265 | I78: 5.68E-25 | J78: 1.33E-22 | K78: 218.7745981 | L78: 6.05 | M78: 4.84 | N78: 6.84 | O78: 5.09 | P78: 5.82 | Q78: 6.69 | R78: 0.86 | S78: 0.72 | T78: 1.25 | U78: 0.89 | V78: 1.54 | W78: 0.85
B79: ENSMUSG00000021950 | C79: Anxa8 | D79: 11752 | E79: 165.8283134 | F79: 2.838414771 | G79: 0.2772348064 | H79: 10.23830596 | I79: 1.34E-24 | J79: 3.08E-22 | K79: 215.1210431 | L79: 18.39 | M79: 15.22 | N79: 27.64 | O79: 17.02 | P79: 16.38 | Q79: 34.87 | R79: 4.04 | S79: 2.41 | T79: 4.39 | U79: 1.77 | V79: 2.36 | W79: 2.99
B80: ENSMUSG00000026238 | C80: Ptma | D80: 19231 | E80: 11184.1011 | F80: 0.6928568808 | G80: 0.06775551358 | H80: 10.22583764 | I80: 1.52E-24 | J80: 3.45E-22 | K80: 214.620084 | L80: 809.55 | M80: 789.70 | N80: 888.14 | O80: 807.66 | P80: 898.55 | Q80: 744.73 | R80: 506.88 | S80: 541.82 | T80: 515.75 | U80: 510.91 | V80: 463.04 | W80: 494.13
B81: ENSMUSG00000038150 | C81: Ormdl3 | D81: 66612 | E81: 1698.022936 | F81: 0.8441084509 | G81: 0.08258744418 | H81: 10.22078428 | I81: 1.60E-24 | J81: 3.59E-22 | K81: 214.4511344 | L81: 127.53 | M81: 137.35 | N81: 139.94 | O81: 111.88 | P81: 119.42 | Q81: 142.11 | R81: 86.88 | S81: 68.50 | T81: 68.33 | U81: 62.03 | V81: 69.35 | W81: 74.93
B82: ENSMUSG00000006526 | C82: Stimate | D82: 69179 | E82: 3354.609002 | F82: -1.051481001 | G82: 0.1029680374 | H82: -10.21172227 | I82: 1.76E-24 | J82: 3.89E-22 | K82: 214.1020554 | L82: 109.82 | M82: 112.62 | N82: 88.78 | O82: 141.58 | P82: 121.59 | Q82: 111.16 | R82: 213.97 | S82: 248.25 | T82: 266.13 | U82: 257.06 | V82: 224.11 | W82: 199.24
B83: ENSMUSG00000038583 | C83: Pln | D83: 18821 | E83: 68.25602775 | F83: -2.27250827 | G83: 0.2228505279 | H83: -10.19745518 | I83: 2.04E-24 | J83: 4.45E-22 | K83: 213.519845 | L83: 0.90 | M83: 0.83 | N83: 0.51 | O83: 0.94 | P83: 1.42 | Q83: 0.81 | R83: 5.57 | S83: 5.37 | T83: 4.60 | U83: 3.30 | V83: 3.54 | W83: 3.69
B84: ENSMUSG00000034245 | C84: Hdac11 | D84: 232232 | E84: 478.7035296 | F84: -0.9649181188 | G84: 0.09489417495 | H84: -10.16835985 | I84: 2.74E-24 | J84: 5.92E-22 | K84: 212.2762834 | L84: 11.60 | M84: 14.06 | N84: 14.23 | O84: 14.91 | P84: 16.55 | Q84: 11.47 | R84: 25.74 | S84: 27.04 | T84: 26.75 | U84: 27.55 | V84: 23.39 | W84: 30.34
B85: ENSMUSG00000032826 | C85: Ank2 | D85: 109676 | E85: 3415.625242 | F85: -0.9033513044 | G85: 0.08887696744 | H85: -10.16406534 | I85: 2.87E-24 | J85: 6.11E-22 | K85: 212.1395034 | L85: 101.30 | M85: 112.87 | N85: 103.06 | O85: 133.12 | P85: 116.73 | Q85: 107.44 | R85: 188.56 | S85: 230.98 | T85: 204.21 | U85: 194.15 | V85: 217.34 | W85: 213.89
B86: ENSMUSG00000063727 | C86: Tnfrsf11b | D86: 18383 | E86: 925.3497644 | F86: 1.519881903 | G86: 0.1500630184 | H86: 10.1282909 | I86: 4.14E-24 | J86: 8.71E-22 | K86: 210.6020495 | L86: 68.34 | M86: 67.03 | N86: 87.44 | O86: 56.25 | P86: 51.45 | Q86: 58.68 | R86: 18.18 | S86: 24.87 | T86: 21.45 | U86: 22.72 | V86: 18.62 | W86: 28.70
B87: ENSMUSG00000017817 | C87: Jph2 | D87: 59091 | E87: 6282.407699 | F87: -0.915329216 | G87: 0.0903953432 | H87: -10.1258448 | I87: 4.24E-24 | J87: 8.82E-22 | K87: 210.5467257 | L87: 222.89 | M87: 212.22 | N87: 208.19 | O87: 190.57 | P87: 240.93 | Q87: 193.84 | R87: 338.78 | S87: 424.25 | T87: 350.12 | U87: 436.07 | V87: 428.06 | W87: 393.89
B88: ENSMUSG00000058793 | C88: Cds2 | D88: 110911 | E88: 6729.981579 | F88: -0.7303019264 | G88: 0.0721827091 | H88: -10.11740811 | I88: 4.63E-24 | J88: 9.39E-22 | K88: 210.2745318 | L88: 251.14 | M88: 248.64 | N88: 210.04 | O88: 290.84 | P88: 225.30 | Q88: 245.17 | R88: 361.76 | S88: 436.32 | T88: 403.62 | U88: 426.48 | V88: 362.09 | W88: 427.17
B89: ENSMUSG00000034353 | C89: Ramp1 | D89: 51801 | E89: 2090.054516 | F89: -0.93957159 | G89: 0.0928673317 | H89: -10.11735314 | I89: 4.63E-24 | J89: 9.39E-22 | K89: 210.2745318 | L89: 66.71 | M89: 74.37 | N89: 68.53 | O89: 76.58 | P89: 97.71 | Q89: 70.05 | R89: 133.85 | S89: 155.48 | T89: 124.60 | U89: 147.91 | V89: 154.45 | W89: 146.48
B90: ENSMUSG00000032194 | C90: Kank2 | D90: 235041 | E90: 5055.827032 | F90: -0.7833919891 | G90: 0.07744912095 | H90: -10.11492422 | I90: 4.74E-24 | J90: 9.51E-22 | K90: 210.218193 | L90: 191.50 | M90: 186.82 | N90: 170.02 | O90: 196.56 | P90: 195.13 | Q90: 182.37 | R90: 320.03 | S90: 311.62 | T90: 328.39 | U90: 357.60 | V90: 299.00 | W90: 300.08
B91: ENSMUSG00000027737 | C91: Slc7a11 | D91: 26570 | E91: 26.40800296 | F91: 4.179628197 | G91: 0.4147164629 | H91: 10.07827895 | I91: 6.89E-24 | J91: 1.37E-21 | K91: 208.646663 | L91: 5.33 | M91: 4.88 | N91: 4.21 | O91: 2.72 | P91: 2.77 | Q91: 3.32 | R91: 0.14 | S91: 0.12 | T91: 0.07 | U91: 0.32 | V91: 0.26 | W91: 0.35
B92: ENSMUSG00000021200 | C92: Asb2 | D92: 65256 | E92: 1796.381961 | F92: -1.11108446 | G92: 0.1105672802 | H92: -10.04894448 | I92: 9.29E-24 | J92: 1.82E-21 | K92: 207.4023664 | L92: 59.37 | M92: 51.47 | N92: 43.49 | O92: 66.82 | P92: 74.12 | Q92: 59.23 | R92: 120.76 | S92: 126.99 | T92: 124.11 | U92: 129.38 | V92: 141.83 | W92: 115.14
B93: ENSMUSG00000066278 | C93: Vps37b | D93: 330192 | E93: 360.5856559 | F93: -0.9208678883 | G93: 0.09174211295 | H93: -10.03757008 | I93: 1.04E-23 | J93: 2.02E-21 | K93: 206.9510544 | L93: 10.99 | M93: 12.01 | N93: 14.42 | O93: 12.61 | P93: 14.20 | Q93: 11.47 | R93: 24.60 | S93: 24.87 | T93: 23.26 | U93: 26.26 | V93: 22.78 | W93: 20.97
B94: ENSMUSG00000057719 | C94: Sh3rf2 | D94: 269016 | E94: 878.6699758 | F94: -1.378430749 | G94: 0.1374374766 | H94: -10.02951148 | I94: 1.13E-23 | J94: 2.16E-21 | K94: 206.6455511 | L94: 17.83 | M94: 24.48 | N94: 18.30 | O94: 30.99 | P94: 26.06 | Q94: 22.49 | R94: 63.19 | S94: 67.66 | T94: 60.52 | U94: 65.49 | V94: 51.19 | W94: 54.11
B95: ENSMUSG00000028164 | C95: Manba | D95: 110173 | E95: 984.7136537 | F95: -0.702508583 | G95: 0.07015555361 | H95: -10.01358477 | I95: 1.33E-23 | J95: 2.52E-21 | K95: 205.9941265 | L95: 34.64 | M95: 39.42 | N95: 36.28 | O95: 46.17 | P95: 42.99 | Q95: 43.03 | R95: 64.09 | S95: 70.44 | T95: 68.95 | U95: 59.94 | V95: 62.32 | W95: 65.91
B96: ENSMUSG00000002012 | C96: Pnck | D96: 93843 | E96: 430.686211 | F96: -1.192315302 | G96: 0.1191568531 | H96: -10.00626713 | I96: 1.43E-23 | J96: 2.68E-21 | K96: 205.7208843 | L96: 11.66 | M96: 10.01 | N96: 11.83 | O96: 15.14 | P96: 16.55 | Q96: 11.07 | R96: 28.93 | S96: 26.01 | T96: 26.95 | U96: 31.74 | V96: 27.60 | W96: 31.64
B97: ENSMUSG00000024302 | C97: Dtna | D97: 13527 | E97: 2200.482152 | F97: -0.8710922816 | G97: 0.08707362884 | H97: -10.00408842 | I97: 1.46E-23 | J97: 2.71E-21 | K97: 205.6727518 | L97: 72.43 | M97: 63.98 | N97: 61.65 | O97: 89.03 | P97: 83.30 | Q97: 72.92 | R97: 128.33 | S97: 152.16 | T97: 131.71 | U97: 137.11 | V97: 129.62 | W97: 124.90
B98: ENSMUSG00000041696 | C98: Rasl12 | D98: 70784 | E98: 6228.179846 | F98: -0.7862674094 | G98: 0.07923261814 | H98: -9.923531847 | I98: 3.29E-23 | J98: 6.03E-21 | K98: 202.1993984 | L98: 205.51 | M98: 195.62 | N98: 181.76 | O98: 256.67 | P98: 239.04 | Q98: 212.82 | R98: 329.26 | S98: 368.66 | T98: 338.28 | U98: 383.78 | V98: 380.41 | W98: 401.96
B99: ENSMUSG00000001131 | C99: Timp1 | D99: 21857 | E99: 532.6538258 | F99: 1.68821311 | G99: 0.1703826866 | H99: 9.908360663 | I99: 3.83E-23 | J99: 6.94E-21 | K99: 201.5859936 | L99: 58.69 | M99: 34.62 | N99: 72.74 | O99: 44.64 | P99: 41.23 | Q99: 64.97 | R99: 17.70 | S99: 15.69 | T99: 15.60 | U99: 16.68 | V99: 16.11 | W99: 15.79
B100: ENSMUSG00000021493 | C100: Pdlim7 | D100: 67399 | E100: 4715.072246 | F100: -0.7394541148 | G100: 0.07477721904 | H100: -9.888761903 | I100: 4.66E-23 | J100: 8.35E-21 | K100: 200.7809902 | L100: 168.35 | M100: 173.14 | N100: 168.40 | O100: 174.45 | P100: 205.60 | Q100: 169.79 | R100: 301.85 | S100: 275.53 | T100: 274.42 | U100: 317.56 | V100: 292.33 | W100: 292.85
B101: ENSMUSG00000022443 | C101: Myh9 | D101: 17886 | E101: 8031.492398 | F101: 0.9741997342 | G101: 0.09873873541 | H101: 9.866439247 | I101: 5.82E-23 | J101: 1.03E-20 | K101: 199.8592488 | L101: 630.44 | M101: 635.29 | N101: 668.25 | O101: 552.18 | P101: 596.32 | Q101: 712.62 | R101: 337.92 | S101: 251.93 | T101: 317.32 | U101: 346.89 | V101: 320.03 | W101: 341.78
B102: ENSMUSG00000001098 | C102: Kctd10 | D102: 330171 | E102: 9484.900176 | F102: -0.6325101789 | G102: 0.06418550038 | H102: -9.854409098 | I102: 6.56E-23 | J102: 1.15E-20 | K102: 199.3838886 | L102: 368.87 | M102: 352.04 | N102: 311.85 | O102: 385.09 | P102: 402.66 | Q102: 328.31 | R102: 566.74 | S102: 567.29 | T102: 568.33 | U102: 562.87 | V102: 493.00 | W102: 546.50
B103: ENSMUSG00000038239 | C103: Hrc | D103: 15464 | E103: 152.6875846 | F103: -1.239572713 | G103: 0.1259771928 | H103: -9.839659745 | I103: 7.60E-23 | J103: 1.32E-20 | K103: 198.7912967 | L103: 3.92 | M103: 3.71 | N103: 3.79 | O103: 4.67 | P103: 3.60 | Q103: 3.42 | R103: 9.33 | S103: 11.23 | T103: 7.31 | U103: 8.54 | V103: 9.64 | W103: 8.17
B104: ENSMUSG00000031586 | C104: Rbpms | D104: 19663 | E104: 3246.761798 | F104: -0.8028228599 | G104: 0.08163361962 | H104: -9.83446359 | I104: 8.00E-23 | J104: 1.38E-20 | K104: 198.6111498 | L104: 107.41 | M104: 111.49 | N104: 95.52 | O104: 145.31 | P104: 126.54 | Q104: 105.63 | R104: 188.99 | S104: 203.58 | T104: 196.83 | U104: 213.64 | V104: 205.85 | W104: 186.73
B105: ENSMUSG00000025190 | C105: Got1 | D105: 14718 | E105: 242.0636411 | F105: 1.066319928 | G105: 0.1084707569 | H105: 9.830482966 | I105: 8.32E-23 | J105: 1.42E-20 | K105: 198.4830941 | L105: 19.00 | M105: 17.98 | N105: 21.30 | O105: 17.64 | P105: 17.47 | Q105: 17.46 | R105: 7.66 | S105: 9.54 | T105: 8.43 | U105: 8.38 | V105: 8.67 | W105: 9.72
B106: ENSMUSG00000031636 | C106: Pdlim3 | D106: 53318 | E106: 5363.780284 | F106: -1.061182563 | G106: 0.1080027581 | H106: -9.825513545 | I106: 8.74E-23 | J106: 1.47E-20 | K106: 198.3139528 | L106: 160.38 | M106: 129.18 | N106: 151.95 | O106: 184.02 | P106: 182.14 | Q106: 168.48 | R106: 265.69 | S106: 333.89 | T106: 312.72 | U106: 344.55 | V106: 378.76 | W106: 375.91
B107: ENSMUSG00000046818 | C107: Ddit4l | D107: 73284 | E107: 87.33487271 | F107: 2.299401763 | G107: 0.2340461643 | H107: 9.824565042 | I107: 8.83E-23 | J107: 1.47E-20 | K107: 198.3139528 | L107: 11.72 | M107: 8.18 | N107: 12.11 | O107: 7.65 | P107: 10.18 | Q107: 8.20 | R107: 2.71 | S107: 2.47 | T107: 2.72 | U107: 1.69 | V107: 0.82 | W107: 1.40
B108: ENSMUSG00000047407 | C108: Tgif1 | D108: 21815 | E108: 228.3742644 | F108: 1.138070475 | G108: 0.1161238736 | H108: 9.800486669 | I108: 1.12E-22 | J108: 1.85E-20 | K108: 197.3197711 | L108: 17.43 | M108: 19.27 | N108: 23.89 | O108: 17.70 | P108: 21.66 | Q108: 15.65 | R108: 9.99 | S108: 8.15 | T108: 9.89 | U108: 7.65 | V108: 8.16 | W108: 8.27
B109: ENSMUSG00000020846 | C109: Rflnb | D109: 76566 | E109: 389.0809946 | F109: 1.243363549 | G109: 0.1271060958 | H109: 9.782092209 | I109: 1.34E-22 | J109: 2.20E-20 | K109: 196.5715471 | L109: 30.78 | M109: 36.50 | N109: 33.83 | O109: 27.33 | P109: 29.58 | Q109: 37.89 | R109: 19.08 | S109: 14.67 | T109: 14.21 | U109: 10.31 | V109: 12.31 | W109: 11.56
B110: ENSMUSG00000024664 | C110: Fads3 | D110: 60527 | E110: 2012.336664 | F110: 0.7679266549 | G110: 0.07855947987 | H110: 9.775098514 | I110: 1.44E-22 | J110: 2.34E-20 | K110: 196.3130548 | L110: 135.61 | M110: 136.89 | N110: 149.78 | O110: 134.93 | P110: 151.97 | Q110: 122.74 | R110: 80.94 | S110: 72.97 | T110: 77.10 | U110: 84.99 | V110: 87.92 | W110: 80.26
B111: ENSMUSG00000040354 | C111: Mars1 | D111: 216443 | E111: 886.3186135 | F111: 0.5164886694 | G111: 0.05291450267 | H111: 9.760814964 | I111: 1.66E-22 | J111: 2.67E-20 | K111: 195.7420641 | L111: 57.96 | M111: 59.90 | N111: 62.80 | O111: 58.88 | P111: 60.04 | Q111: 58.53 | R111: 42.82 | S111: 44.36 | T111: 41.37 | U111: 41.25 | V111: 41.96 | W111: 36.77
B112: ENSMUSG00000032540 | C112: Abhd5 | D112: 67469 | E112: 939.7579621 | F112: 0.9985816981 | G112: 0.1024255754 | H112: 9.749339403 | I112: 1.86E-22 | J112: 2.96E-20 | K112: 195.2916656 | L112: 76.69 | M112: 78.62 | N112: 76.48 | O112: 67.63 | P112: 68.76 | Q112: 96.27 | R112: 44.35 | S112: 43.28 | T112: 38.45 | U112: 32.79 | V112: 37.09 | W112: 34.88
B113: ENSMUSG00000027797 | C113: Dclk1 | D113: 13175 | E113: 418.7454472 | F113: 1.047105173 | G113: 0.1074800533 | H113: 9.742320933 | I113: 1.99E-22 | J113: 3.14E-20 | K113: 195.0319394 | L113: 43.78 | M113: 34.74 | N113: 34.06 | O113: 38.29 | P113: 33.02 | Q113: 46.85 | R113: 17.75 | S113: 19.86 | T113: 22.50 | U113: 18.05 | V113: 14.93 | W113: 17.89
B114: ENSMUSG00000024529 | C114: Lox | D114: 16948 | E114: 9072.090526 | F114: 0.8560743807 | G114: 0.08827451725 | H114: 9.697865333 | I114: 3.08E-22 | J114: 4.77E-20 | K114: 193.2144567 | L114: 776.47 | M114: 710.79 | N114: 713.77 | O114: 875.25 | P114: 748.38 | Q114: 945.37 | R114: 482.00 | S114: 533.37 | T114: 423.12 | U114: 391.60 | V114: 430.83 | W114: 356.28
B115: ENSMUSG00000030591 | C115: Psmd8 | D115: 57296 | E115: 2927.06262 | F115: 0.7380436993 | G115: 0.07610392429 | H115: 9.697840239 | I115: 3.08E-22 | J115: 4.77E-20 | K115: 193.2144567 | L115: 205.01 | M115: 197.04 | N115: 246.87 | O115: 215.98 | P115: 223.58 | Q115: 200.69 | R115: 134.23 | S115: 136.77 | T115: 123.49 | U115: 116.57 | V115: 135.11 | W115: 120.32
B116: ENSMUSG00000026655 | C116: Fam107b | D116: 66540 | E116: 330.1321779 | F116: 1.164339138 | G116: 0.1201374258 | H116: 9.69172704 | I116: 3.27E-22 | J116: 5.02E-20 | K116: 192.993687 | L116: 28.25 | M116: 29.78 | N116: 33.46 | O116: 27.43 | P116: 25.48 | Q116: 31.30 | R116: 14.80 | S116: 13.52 | T116: 11.98 | U116: 11.36 | V116: 12.67 | W116: 13.25
B117: ENSMUSG00000029106 | C117: Add1 | D117: 11518 | E117: 4107.656856 | F117: -0.467223125 | G117: 0.04822813864 | H117: -9.687770214 | I117: 3.40E-22 | J117: 5.17E-20 | K117: 192.8643885 | L117: 166.10 | M117: 169.47 | N117: 162.44 | O117: 192.19 | P117: 189.85 | Q117: 168.68 | R117: 236.62 | S117: 235.03 | T117: 252.27 | U117: 254.08 | V117: 220.06 | W117: 240.49
B118: ENSMUSG00000035493 | C118: Tgfbi | D118: 21810 | E118: 7238.616852 | F118: -1.128494921 | G118: 0.1166934885 | H118: -9.67059032 | I118: 4.02E-22 | J118: 6.06E-20 | K118: 192.1732642 | L118: 208.76 | M118: 228.87 | N118: 186.84 | O118: 250.16 | P118: 304.53 | Q118: 214.58 | R118: 449.97 | S118: 536.09 | T118: 498.41 | U118: 505.19 | V118: 579.53 | W118: 448.55
B119: ENSMUSG00000035357 | C119: Pdzrn3 | D119: 55983 | E119: 2207.472205 | F119: -0.5963765849 | G119: 0.06173762835 | H119: -9.659855761 | I119: 4.46E-22 | J119: 6.67E-20 | K119: 191.7562142 | L119: 88.35 | M119: 78.96 | N119: 78.19 | O119: 99.11 | P119: 93.81 | Q119: 85.75 | R119: 123.04 | S119: 131.03 | T119: 132.12 | U119: 139.69 | V119: 119.47 | W119: 140.15
B120: ENSMUSG00000043943 | C120: Naalad2 | D120: 72560 | E120: 692.0531579 | F120: -0.8207158019 | G120: 0.08503974167 | H120: -9.650967721 | I120: 4.87E-22 | J120: 7.22E-20 | K120: 191.4175263 | L120: 24.72 | M120: 21.81 | N120: 23.11 | O120: 29.18 | P120: 26.82 | Q120: 26.77 | R120: 43.25 | S120: 48.59 | T120: 44.02 | U120: 40.68 | V120: 44.37 | W120: 45.74
B121: ENSMUSG00000032289 | C121: Thsd4 | D121: 207596 | E121: 9944.919393 | F121: -0.7868468445 | G121: 0.08173725086 | H121: -9.626539139 | I121: 6.18E-22 | J121: 9.07E-20 | K121: 190.4217516 | L121: 349.02 | M121: 380.07 | N121: 318.97 | O121: 426.43 | P121: 416.82 | Q121: 352.36 | R121: 578.78 | S121: 633.68 | T121: 624.96 | U121: 694.98 | V121: 634.52 | W121: 665.32
B122: ENSMUSG00000026414 | C122: Tnnt2 | D122: 21956 | E122: 201.8326027 | F122: 2.418263035 | G122: 0.2520793479 | H122: 9.59326123 | I122: 8.53E-22 | J122: 1.24E-19 | K122: 189.0554382 | L122: 12.22 | M122: 13.64 | N122: 16.87 | O122: 6.87 | P122: 9.76 | Q122: 7.65 | R122: 1.48 | S122: 2.35 | T122: 2.23 | U122: 1.37 | V122: 1.95 | W122: 2.99
B123: ENSMUSG00000068744 | C123: Psrc1 | D123: 56742 | E123: 35.39817703 | F123: 2.979493034 | G123: 0.3116040184 | H123: 9.561792718 | I123: 1.16E-21 | J123: 1.67E-19 | K123: 187.7695032 | L123: 5.72 | M123: 3.17 | N123: 5.08 | O123: 2.20 | P123: 4.23 | Q123: 3.82 | R123: 0.52 | S123: 0.42 | T123: 0.49 | U123: 0.40 | V123: 0.41 | W123: 0.75
B124: ENSMUSG00000031028 | C124: Tub | D124: 22141 | E124: 2207.614713 | F124: -1.248914639 | G124: 0.1306714393 | H124: -9.557671105 | I124: 1.20E-21 | J124: 1.72E-19 | K124: 187.6332006 | L124: 53.03 | M124: 58.31 | N124: 40.48 | O124: 82.15 | P124: 57.82 | Q124: 61.70 | R124: 144.08 | S124: 155.90 | T124: 161.45 | U124: 148.31 | V124: 107.72 | W124: 116.63
B125: ENSMUSG00000021703 | C125: Serinc5 | D125: 218442 | E125: 1642.190751 | F125: -0.8433897537 | G125: 0.08841651765 | H125: -9.538825733 | I125: 1.44E-21 | J125: 2.05E-19 | K125: 186.8796795 | L125: 55.78 | M125: 56.93 | N125: 47.60 | O125: 75.99 | P125: 69.26 | Q125: 64.77 | R125: 103.25 | S125: 115.82 | T125: 115.41 | U125: 111.25 | V125: 103.31 | W125: 109.56
B126: ENSMUSG00000029763 | C126: Exoc4 | D126: 20336 | E126: 2167.453584 | F126: 0.5428589461 | G126: 0.05696133442 | H126: 9.53030598 | I126: 1.57E-21 | J126: 2.21E-19 | K126: 186.5591343 | L126: 148.00 | M126: 123.42 | N126: 148.85 | O126: 141.87 | P126: 145.48 | Q126: 135.42 | R126: 94.83 | S126: 97.05 | T126: 96.46 | U126: 97.72 | V126: 92.13 | W126: 95.61
B127: ENSMUSG00000064325 | C127: Hhip | D127: 15245 | E127: 1228.141472 | F127: -1.577505365 | G127: 0.1656864544 | H127: -9.521027962 | I127: 1.71E-21 | J127: 2.40E-19 | K127: 186.2069109 | L127: 34.03 | M127: 25.44 | N127: 26.39 | O127: 43.18 | P127: 28.03 | Q127: 23.85 | R127: 68.61 | S127: 99.47 | T127: 102.04 | U127: 104.97 | V127: 80.94 | W127: 78.47
B128: ENSMUSG00000058070 | C128: Eml1 | D128: 68519 | E128: 4881.915009 | F128: -0.6881759517 | G128: 0.07236984351 | H128: -9.509153514 | I128: 1.92E-21 | J128: 2.66E-19 | K128: 185.7463636 | L128: 207.70 | M128: 185.78 | N128: 171.92 | O128: 219.39 | P128: 209.04 | Q128: 176.78 | R128: 269.26 | S128: 342.52 | T128: 311.12 | U128: 313.62 | V128: 336.24 | W128: 294.90
B129: ENSMUSG00000038178 | C129: Slc43a2 | D129: 215113 | E129: 280.7765983 | F129: 1.124913555 | G129: 0.1183234004 | H129: 9.507109767 | I129: 1.96E-21 | J129: 2.69E-19 | K129: 185.6962224 | L129: 20.74 | M129: 24.23 | N129: 21.72 | O129: 19.74 | P129: 20.66 | Q129: 24.31 | R129: 11.47 | S129: 9.42 | T129: 10.03 | U129: 7.89 | V129: 10.05 | W129: 10.61
B130: ENSMUSG00000027931 | C130: Npr1 | D130: 18160 | E130: 5479.026588 | F130: -0.7315021817 | G130: 0.07700992361 | H130: -9.498804147 | I130: 2.12E-21 | J130: 2.88E-19 | K130: 185.3997946 | L130: 186.79 | M130: 200.88 | N130: 171.08 | O130: 227.43 | P130: 221.15 | Q130: 210.15 | R130: 319.84 | S130: 320.98 | T130: 329.51 | U130: 336.17 | V130: 332.86 | W130: 361.91
B131: ENSMUSG00000031661 | C131: Nkd1 | D131: 93960 | E131: 911.0491149 | F131: -1.139933991 | G131: 0.1200140425 | H131: -9.498338418 | I131: 2.13E-21 | J131: 2.88E-19 | K131: 185.3997946 | L131: 23.99 | M131: 25.53 | N131: 23.43 | O131: 25.45 | P131: 26.65 | Q131: 22.95 | R131: 52.48 | S131: 48.22 | T131: 53.77 | U131: 63.96 | V131: 55.91 | W131: 49.27
B132: ENSMUSG00000040811 | C132: Eml2 | D132: 72205 | E132: 1005.845075 | F132: -0.9300170268 | G132: 0.09795532738 | H132: -9.494297571 | I132: 2.22E-21 | J132: 2.97E-19 | K132: 185.2656647 | L132: 35.15 | M132: 28.28 | N132: 30.87 | O132: 32.10 | P132: 36.12 | Q132: 31.75 | R132: 62.19 | S132: 52.87 | T132: 57.18 | U132: 70.33 | V132: 58.99 | W132: 65.12
B133: ENSMUSG00000024845 | C133: Tmem134 | D133: 66990 | E133: 841.3950879 | F133: 0.6955175965 | G133: 0.07326952588 | H133: 9.492590379 | I133: 2.25E-21 | J133: 3.00E-19 | K133: 185.228576 | L133: 59.42 | M133: 63.27 | N133: 70.43 | O133: 52.65 | P133: 65.11 | Q133: 60.34 | R133: 42.35 | S133: 37.78 | T133: 37.82 | U133: 37.94 | V133: 37.60 | W133: 34.13
B134: ENSMUSG00000022032 | C134: Scara5 | D134: 71145 | E134: 2281.385098 | F134: -0.9539548444 | G134: 0.1008353848 | H134: -9.460516727 | I134: 3.06E-21 | J134: 4.05E-19 | K134: 183.927957 | L134: 80.39 | M134: 81.46 | N134: 67.29 | O134: 88.99 | P134: 93.86 | Q134: 77.04 | R134: 162.87 | S134: 154.33 | T134: 149.12 | U134: 147.99 | V134: 169.84 | W134: 154.35
B135: ENSMUSG00000021994 | C135: Wnt5a | D135: 22418 | E135: 659.7933996 | F135: -0.9135396069 | G135: 0.09662452433 | H135: -9.454531478 | I135: 3.24E-21 | J135: 4.25E-19 | K135: =-10*LOG10(J135) -> 183.7129681 | L135: 22.59 | M135: 27.32 | N135: 23.75 | O135: 27.43 | P135: 21.54 | Q135: 18.37 | R135: 49.67 | S135: 52.09 | T135: 45.13 | U135: 41.65 | V135: 38.06 | W135: 37.81
B136: ENSMUSG00000021866 | C136: Anxa11 | D136: 11744 | E136: 2628.89755 | F136: -0.7109929605 | G136: 0.07531250924 | H136: -9.440569271 | I136: 3.71E-21 | J136: 4.82E-19 | K136: 183.1670936 | L136: 102.08 | M136: 102.69 | N136: 92.98 | O136: 101.96 | P136: 103.41 | Q136: 85.00 | R136: 146.26 | S136: 146.49 | T136: 154.06 | U136: 165.31 | V136: 178.15 | W136: 162.82
B137: ENSMUSG00000039518 | C137: Cdsn | D137: 386463 | E137: 78.66393825 | F137: 2.649358531 | G137: 0.2813452453 | H137: 9.416752463 | I137: 4.65E-21 | J137: 6.01E-19 | K137: 182.2141294 | L137: 9.87 | M137: 6.47 | N137: 12.85 | O137: 7.00 | P137: 7.71 | Q137: 7.40 | R137: 2.33 | S137: 1.03 | T137: 1.39 | U137: 1.05 | V137: 0.67 | W137: 1.59
B138: ENSMUSG00000068196 | C138: Col8a1 | D138: 12837 | E138: 1171.329456 | F138: 2.78333502 | G138: 0.2959391029 | H138: 9.405093793 | I138: 5.20E-21 | J138: 6.66E-19 | K138: 181.7651385 | L138: 180.85 | M138: 70.32 | N138: 134.85 | O138: 84.97 | P138: 63.69 | Q138: 255.34 | R138: 19.79 | S138: 15.99 | T138: 24.03 | U138: 16.51 | V138: 19.59 | W138: 18.04
B139: ENSMUSG00000053411 | C139: Cbx7 | D139: 52609 | E139: 765.9429091 | F139: -0.8339405109 | G139: 0.08870480192 | H139: -9.401300637 | I139: 5.39E-21 | J139: 6.82E-19 | K139: 181.659434 | L139: 23.49 | M139: 20.94 | N139: 21.21 | O139: 28.30 | P139: 27.57 | Q139: 24.26 | R139: 44.68 | S139: 39.84 | T139: 37.61 | U139: 46.97 | V139: 39.96 | W139: 48.43
B140: ENSMUSG00000037062 | C140: Sh3glb1 | D140: 54673 | E140: 3916.085683 | F140: 0.5433877917 | G140: 0.05780128589 | H140: 9.400963721 | I140: 5.41E-21 | J140: 6.82E-19 | K140: 181.659434 | L140: 256.19 | M140: 275.62 | N140: 277.19 | O140: 255.38 | P140: 247.80 | Q140: 246.73 | R140: 195.51 | S140: 186.74 | T140: 172.31 | U140: 166.03 | V140: 171.99 | W140: 169.19
B141: ENSMUSG00000041219 | C141: Arhgap11a | D141: 228482 | E141: 66.95652177 | F141: 1.634855525 | G141: 0.1739479842 | H141: 9.398531014 | I141: 5.53E-21 | J141: 6.93E-19 | K141: 181.5910762 | L141: 6.56 | M141: 6.47 | N141: 7.53 | O141: 6.84 | P141: 5.82 | Q141: 7.95 | R141: 2.43 | S141: 2.11 | T141: 2.09 | U141: 2.26 | V141: 1.69 | W141: 2.54
B142: ENSMUSG00000030533 | C142: Unc45a | D142: 101869 | E142: 2385.507992 | F142: -0.8171095804 | G142: 0.08738020429 | H142: -9.351197871 | I142: 8.67E-21 | J142: 1.08E-18 | K142: 179.6742921 | L142: 85.32 | M142: 76.58 | N142: 71.12 | O142: 78.55 | P142: 92.18 | Q142: 85.40 | R142: 130.18 | S142: 128.80 | T142: 133.10 | U142: 149.68 | V142: 148.14 | W142: 162.77
B143: ENSMUSG00000023904 | C143: Hcfc1r1 | D143: 353502 | E143: 1854.826393 | F143: -0.5327916699 | G143: 0.05698905127 | H143: -9.349018066 | I143: 8.85E-21 | J143: 1.09E-18 | K143: 179.6163713 | L143: 79.44 | M143: 79.38 | N143: 80.27 | O143: 83.74 | P143: 94.44 | Q143: 86.30 | R143: 116.81 | S143: 118.24 | T143: 124.18 | U143: 122.93 | V143: 124.85 | W143: 115.49
B144: ENSMUSG00000025743 | C144: Sdc3 | D144: 20970 | E144: 552.0039993 | F144: 1.304182922 | G144: 0.1395826257 | H144: 9.34344741 | I144: 9.32E-21 | J144: 1.14E-18 | K144: 179.4190822 | L144: 53.70 | M144: 35.91 | N144: 54.02 | O144: 37.48 | P144: 35.82 | Q144: 56.86 | R144: 21.17 | S144: 16.60 | T144: 16.02 | U144: 17.00 | V144: 19.90 | W144: 19.03
B145: ENSMUSG00000056612 | C145: Ppp1r14b | D145: 18938 | E145: 378.6498579 | F145: 1.254516241 | G145: 0.1343290388 | H145: 9.339129145 | I145: 9.71E-21 | J145: 1.18E-18 | K145: 179.2730641 | L145: 35.04 | M145: 30.53 | N145: 35.21 | O145: 26.84 | P145: 29.83 | Q145: 34.87 | R145: 15.84 | S145: 12.19 | T145: 12.68 | U145: 12.41 | V145: 12.82 | W145: 13.90
B146: ENSMUSG00000005481 | C146: Ddx39a | D146: 68278 | E146: 231.218718 | F146: 1.020043158 | G146: 0.109290628 | H146: 9.333308603 | I146: 1.03E-20 | J146: 1.24E-18 | K146: 179.0676086 | L146: 18.50 | M146: 18.52 | N146: 22.23 | O146: 17.93 | P146: 21.41 | Q146: 17.81 | R146: 11.85 | S146: 9.84 | T146: 8.50 | U146: 8.54 | V146: 8.16 | W146: 9.86
B147: ENSMUSG00000024359 | C147: Hspa9 | D147: 15526 | E147: 5262.158497 | F147: 0.8028190469 | G147: 0.08602294197 | H147: 9.332615562 | I147: 1.03E-20 | J147: 1.24E-18 | K147: 179.0676086 | L147: 365.17 | M147: 449.97 | N147: 459.27 | O147: 353.29 | P147: 336.75 | Q147: 373.60 | R147: 269.12 | S147: 235.57 | T147: 213.54 | U147: 201.88 | V147: 205.18 | W147: 207.86
B148: ENSMUSG00000020184 | C148: Mdm2 | D148: 17246 | E148: 944.2555222 | F148: 0.6762497554 | G148: 0.07262529862 | H148: 9.311490186 | I148: 1.26E-20 | J148: 1.50E-18 | K148: 178.2331939 | L148: 78.26 | M148: 61.94 | N148: 67.38 | O148: 65.49 | P148: 63.19 | Q148: 66.98 | R148: 39.97 | S148: 42.31 | T148: 41.44 | U148: 45.27 | V148: 37.45 | W148: 43.84
B149: ENSMUSG00000018322 | C149: Tomm34 | D149: 67145 | E149: 586.7963518 | F149: -0.6158994154 | G149: 0.0662354883 | H149: -9.298631763 | I149: 1.42E-20 | J149: 1.68E-18 | K149: 177.7379618 | L149: 23.88 | M149: 22.86 | N149: 23.20 | O149: 24.48 | P149: 20.91 | Q149: 23.35 | R149: 36.92 | S149: 35.91 | T149: 33.22 | U149: 37.54 | V149: 32.42 | W149: 34.83
B150: ENSMUSG00000028949 | C150: Smarcd3 | D150: 66993 | E150: 1815.094927 | F150: -0.6527450734 | G150: 0.07021768166 | H150: -9.296021428 | I150: 1.46E-20 | J150: 1.71E-18 | K150: 177.6614248 | L150: 71.36 | M150: 66.74 | N150: 64.19 | O150: 74.11 | P150: 84.18 | Q150: 63.36 | R150: 114.62 | S150: 108.16 | T150: 111.65 | U150: 120.36 | V150: 110.49 | W150: 96.50
B151: ENSMUSG00000029231 | C151: Pdgfra | D151: 18595 | E151: 3480.227962 | F151: -0.7388483867 | G151: 0.07962705898 | H151: -9.278860682 | I151: 1.71E-20 | J151: 2.00E-18 | K151: 176.9912488 | L151: 137.06 | M151: 133.56 | N151: 114.10 | O151: 152.12 | P151: 146.48 | Q151: 117.76 | R151: 201.93 | S151: 253.01 | T151: 223.36 | U151: 211.87 | V151: 215.39 | W151: 219.32
B152: ENSMUSG00000007891 | C152: Ctsd | D152: 13033 | E152: 19673.97432 | F152: 0.6630722721 | G152: 0.07164264758 | H152: 9.255273144 | I152: 2.14E-20 | J152: 2.46E-18 | K152: 176.087843 | L152: 1445.43 | M152: 1318.93 | N152: 1585.50 | O152: 1228.44 | P152: 1361.09 | Q152: 1307.24 | R152: 884.20 | S152: 817.47 | T152: 863.23 | U152: 837.49 | V152: 874.38 | W152: 889.57
B153: ENSMUSG00000047153 | C153: Khnyn | D153: 219094 | E153: 727.9352438 | F153: -0.5847036561 | G153: 0.06317953134 | H153: -9.254637439 | I153: 2.15E-20 | J153: 2.46E-18 | K153: 176.087843 | L153: 29.15 | M153: 27.49 | N153: 26.94 | O153: 32.32 | P153: 30.67 | Q153: 30.40 | R153: 48.29 | S153: 41.10 | T153: 48.06 | U153: 47.53 | V153: 39.14 | W153: 39.96
B154: ENSMUSG00000028416 | C154: Bag1 | D154: 12017 | E154: 2015.774477 | F154: 0.6406795564 | G154: 0.06922901016 | H154: 9.254495406 | I154: 2.15E-20 | J154: 2.46E-18 | K154: 176.087843 | L154: 145.81 | M154: 140.98 | N154: 162.63 | O154: 133.73 | P154: 159.51 | Q154: 131.09 | R154: 103.01 | S154: 95.85 | T154: 95.56 | U154: 84.75 | V154: 89.61 | W154: 87.59
B155: ENSMUSG00000037933 | C155: Bicd2 | D155: 76895 | E155: 1749.88241 | F155: 0.6237238295 | G155: 0.06753015344 | H155: 9.236227043 | I155: 2.55E-20 | J155: 2.90E-18 | K155: 175.3749884 | L155: 122.38 | M155: 116.00 | N155: 124.27 | O155: 112.04 | P155: 120.80 | Q155: 124.10 | R155: 77.51 | S155: 69.47 | T155: 73.41 | U155: 75.89 | V155: 80.28 | W155: 85.64
B156: ENSMUSG00000024049 | C156: Myom1 | D156: 17929 | E156: 7902.714612 | F156: -0.9072789978 | G156: 0.09845370109 | H156: -9.215285843 | I156: 3.10E-20 | J156: 3.50E-18 | K156: 174.5551564 | L156: 233.49 | M156: 228.82 | N156: 230.51 | O156: 304.95 | P156: 244.07 | Q156: 227.66 | R156: 402.63 | S156: 482.91 | T156: 459.68 | U156: 475.14 | V156: 437.14 | W156: 469.97
B157: ENSMUSG00000027895 | C157: Kcnc4 | D157: 99738 | E157: 308.5888676 | F157: -1.678651309 | G157: 0.1827710058 | H157: -9.184450792 | I157: 4.14E-20 | J157: 4.64E-18 | K157: 173.3375922 | L157: 5.33 | M157: 5.80 | N157: 4.71 | O157: 7.46 | P157: 6.24 | Q157: 5.49 | R157: 21.70 | S157: 15.03 | T157: 17.48 | U157: 19.66 | V157: 18.77 | W157: 18.63
B158: ENSMUSG00000041762 | C158: Gpr155 | D158: 68526 | E158: 514.1950009 | F158: -0.9228463146 | G158: 0.100577295 | H158: -9.175493481 | I158: 4.50E-20 | J158: 5.01E-18 | K158: 173.004817 | L158: 18.50 | M158: 17.94 | N158: 16.54 | O158: 22.63 | P158: 21.03 | Q158: 17.97 | R158: 31.07 | S158: 44.06 | T158: 33.08 | U158: 37.54 | V158: 30.98 | W158: 38.96
B159: ENSMUSG00000062762 | C159: Ei24 | D159: 13663 | E159: 1257.50423 | F159: 0.4975140969 | G159: 0.05427221973 | H159: 9.167012137 | I159: 4.86E-20 | J159: 5.38E-18 | K159: 172.6913699 | L159: 87.96 | M159: 95.06 | N159: 84.57 | O159: 87.83 | P159: 85.31 | Q159: 83.59 | R159: 65.04 | S159: 67.90 | T159: 61.43 | U159: 61.87 | V159: 54.94 | W159: 57.84
B160: ENSMUSG00000022358 | C160: Fbxo32 | D160: 67731 | E160: 3868.352412 | F160: -1.011707343 | G160: 0.1105464424 | H160: -9.151876094 | I160: 5.60E-20 | J160: 6.15E-18 | K160: 172.1103686 | L160: 118.68 | M160: 113.79 | N160: 91.73 | O160: 144.56 | P160: 141.54 | Q160: 99.89 | R160: 230.10 | S160: 242.94 | T160: 301.37 | U160: 240.95 | V160: 183.89 | W160: 221.56
B161: ENSMUSG00000046442 | C161: Ppm1e | D161: 320472 | E161: 349.2559235 | F161: -1.268288782 | G161: 0.1386990681 | H161: -9.144176665 | I161: 6.01E-20 | J161: 6.56E-18 | K161: 171.8288314 | L161: 9.47 | M161: 9.97 | N161: 8.09 | O161: 13.23 | P161: 12.95 | Q161: 9.91 | R161: 23.31 | S161: 29.76 | T161: 27.79 | U161: 25.22 | V161: 23.80 | W161: 22.52
B162: ENSMUSG00000025823 | C162: Pdia4 | D162: 12304 | E162: 4145.31963 | F162: 0.7822404197 | G162: 0.0858029699 | H162: 9.116705641 | I162: 7.74E-20 | J162: 8.41E-18 | K162: 170.7545028 | L162: 330.69 | M162: 300.94 | N162: 358.94 | O162: 290.45 | P162: 333.07 | Q162: 286.89 | R162: 179.10 | S162: 188.80 | T162: 170.85 | U162: 192.21 | V162: 184.92 | W162: 180.70
B163: ENSMUSG00000004837 | C163: Grap | D163: 71520 | E163: 186.8007161 | F163: 1.219894909 | G163: 0.1341806873 | H163: 9.091434349 | I163: 9.77E-20 | J163: 1.05E-17 | K163: 169.7711084 | L163: 18.05 | M163: 17.69 | N163: 16.36 | O163: 17.31 | P163: 18.48 | Q163: 16.30 | R163: 9.90 | S163: 6.82 | T163: 8.22 | U163: 6.77 | V163: 6.77 | W163: 5.93
B164: ENSMUSG00000040170 | C164: Fmo2 | D164: 55990 | E164: 17199.07715 | F164: -1.100396057 | G164: 0.1210889396 | H164: -9.087502629 | I164: 1.01E-19 | J164: 1.09E-17 | K164: 169.6414682 | L164: 419.55 | M164: 506.82 | N164: 386.35 | O164: 754.07 | P164: 544.70 | Q164: 497.44 | R164: 1085.04 | S164: 1071.45 | T164: 1261.76 | U164: 1065.64 | V164: 969.99 | W164: 1138.68
B165: ENSMUSG00000040675 | C165: Mthfd1l | D165: 270685 | E165: 145.3485897 | F165: 1.208087054 | G165: 0.1330327555 | H165: 9.081124787 | I165: 1.07E-19 | J165: 1.14E-17 | K165: 169.4140946 | L165: 13.40 | M165: 11.26 | N165: 12.48 | O165: 11.15 | P165: 12.91 | Q165: 12.38 | R165: 4.43 | S165: 5.01 | T165: 4.88 | U165: 7.41 | V165: 5.85 | W165: 4.28
B166: ENSMUSG00000021417 | C166: Eci2 | D166: 23986 | E166: 1351.860398 | F166: 0.6744388929 | G166: 0.07432673122 | H166: 9.073974893 | I166: 1.15E-19 | J166: 1.21E-17 | K166: 169.1559388 | L166: 85.60 | M166: 104.57 | N166: 103.20 | O166: 89.80 | P166: 98.34 | Q166: 88.62 | R166: 65.23 | S166: 58.30 | T166: 58.37 | U166: 53.81 | V166: 60.48 | W166: 58.09
B167: ENSMUSG00000055691 | C167: Gja6 | D167: 414089 | E167: 199.8151115 | F167: -1.078530655 | G167: 0.1189470005 | H167: -9.067321163 | I167: 1.22E-19 | J167: 1.28E-17 | K167: 168.917605 | L167: 6.73 | M167: 8.34 | N167: 5.96 | O167: 8.23 | P167: 7.42 | Q167: 6.34 | R167: 14.27 | S167: 19.86 | T167: 12.75 | U167: 13.94 | V167: 15.49 | W167: 14.05
B168: ENSMUSG00000026879 | C168: Gsn | D168: 227753 | E168: 43474.67916 | F168: -0.744617561 | G168: 0.08227843609 | H168: -9.049972222 | I168: 1.43E-19 | J168: 1.49E-17 | K168: 168.2536766 | L168: 1533.05 | M168: 1737.12 | N168: 1512.11 | O168: 1654.41 | P168: 1927.33 | Q168: 1616.02 | R168: 2764.98 | S168: 2633.78 | T168: 2642.55 | U168: 2826.66 | V168: 2945.58 | W168: 2759.63
B169: ENSMUSG00000060429 | C169: Sntb1 | D169: 20649 | E169: 1403.419158 | F169: -1.04441265 | G169: 0.1156555714 | H169: -9.030370414 | I169: 1.71E-19 | J169: 1.78E-17 | K169: 167.5014538 | L169: 45.07 | M169: 46.38 | N169: 35.03 | O169: 47.95 | P169: 47.26 | Q169: 43.88 | R169: 77.89 | S169: 113.83 | T169: 80.31 | U169: 89.26 | V169: 85.36 | W169: 96.21
B170: ENSMUSG00000037613 | C170: Tnfrsf23 | D170: 79201 | E170: 79.0447316 | F170: 2.053708787 | G170: 0.2274528229 | H170: 9.029163766 | I170: 1.73E-19 | J170: 1.79E-17 | K170: 167.4799682 | L170: 9.75 | M170: 9.72 | N170: 11.55 | O170: 6.65 | P170: 5.87 | Q170: 8.35 | R170: 2.66 | S170: 1.63 | T170: 2.51 | U170: 1.85 | V170: 2.00 | W170: 1.74
B171: ENSMUSG00000029777 | C171: Gars | D171: 353172 | E171: 1614.502366 | F171: 0.5715177608 | G171: 0.06331550727 | H171: 9.026505282 | I171: 1.77E-19 | J171: 1.82E-17 | K171: 167.4007282 | L171: 117.67 | M171: 117.33 | N171: 125.33 | O171: 110.75 | P171: 110.95 | Q171: 103.61 | R171: 80.41 | S171: 82.33 | T171: 80.37 | U171: 74.84 | V171: 76.69 | W171: 63.77
B172: ENSMUSG00000039115 | C172: Itga9 | D172: 104099 | E172: 18576.42242 | F172: -0.8554329153 | G172: 0.09483493597 | H172: -9.020229797 | I172: 1.88E-19 | J172: 1.92E-17 | K172: 167.177938 | L172: 638.34 | M172: 651.85 | N172: 515.38 | O172: 846.20 | P172: 769.96 | Q172: 658.93 | R172: 1144.75 | S172: 1229.95 | T172: 1298.95 | U172: 1288.79 | V172: 1130.70 | W172: 1216.10
B173: ENSMUSG00000026062 | C173: Slc9a2 | D173: 226999 | E173: 243.6988889 | F173: -0.8415108574 | G173: 0.09340979009 | H173: -9.008807927 | I173: 2.08E-19 | J173: 2.11E-17 | K173: 166.75133 | L173: 8.91 | M173: 8.05 | N173: 8.09 | O173: 9.17 | P173: 9.85 | Q173: 7.55 | R173: 15.13 | S173: 18.17 | T173: 14.97 | U173: 16.92 | V173: 13.64 | W173: 13.45
B174: ENSMUSG00000008393 | C174: Carhsp1 | D174: 52502 | E174: 2373.281911 | F174: 0.4672422996 | G174: 0.05188187023 | H174: 9.005887751 | I174: 2.14E-19 | J174: 2.16E-17 | K174: 166.6614963 | L174: 153.60 | M174: 158.04 | N174: 157.36 | O174: 143.30 | P174: 158.97 | Q174: 141.06 | R174: 122.76 | S174: 115.34 | T174: 105.17 | U174: 106.90 | V174: 99.56 | W174: 105.47
B175: ENSMUSG00000062980 | C175: Cped1 | D175: 214642 | E175: 26002.22131 | F175: -0.7374342569 | G175: 0.08194987758 | H175: -8.99860108 | I175: 2.29E-19 | J175: 2.29E-17 | K175: 166.3988035 | L175: 890.22 | M175: 930.48 | N175: 819.37 | O175: 1161.40 | P175: 1048.97 | Q175: 833.30 | R175: 1406.31 | S175: 1638.32 | T175: 1688.99 | U175: 1594.27 | V175: 1415.44 | W175: 1637.44
B176: ENSMUSG00000010051 | C176: Hyal1 | D176: 15586 | E176: 2589.908342 | F176: -0.7312934487 | G176: 0.08131675307 | H176: -8.993146198 | I176: 2.40E-19 | J176: 2.39E-17 | K176: 166.2085888 | L176: 89.75 | M176: 93.47 | N176: 85.59 | O176: 122.29 | P176: 124.23 | Q176: 106.03 | R176: 161.54 | S176: 169.24 | T176: 175.24 | U176: 177.15 | V176: 173.28 | W176: 165.51
B177: ENSMUSG00000026304 | C177: Rab17 | D177: 19329 | E177: 61.97571269 | F177: -2.558621074 | G177: 0.284541352 | H177: -8.992088691 | I177: 2.43E-19 | J177: 2.40E-17 | K177: 166.2043781 | L177: 0.90 | M177: 0.92 | N177: 0.69 | O177: 0.91 | P177: 1.05 | Q177: 0.45 | R177: 5.66 | S177: 5.55 | T177: 6.55 | U177: 4.27 | V177: 4.87 | W177: 2.14
B178: ENSMUSG00000042379 | C178: Esm1 | D178: 71690 | E178: 156.4321957 | F178: 2.585805923 | G178: 0.2875749959 | H178: 8.991762009 | I178: 2.43E-19 | J178: 2.40E-17 | K178: 166.2043781 | L178: 16.37 | M178: 10.30 | N178: 19.04 | O178: 19.94 | P178: 10.31 | Q178: 27.73 | R178: 5.14 | S178: 2.35 | T178: 2.65 | U178: 1.61 | V178: 1.54 | W178: 3.74
B179: ENSMUSG00000014867 | C179: Surf4 | D179: 20932 | E179: 5175.902362 | F179: 0.4473483246 | G179: 0.04976305045 | H179: 8.989567973 | I179: 2.48E-19 | J179: 2.43E-17 | K179: 166.1427062 | L179: 338.15 | M179: 342.99 | N179: 353.72 | O179: 349.17 | P179: 369.64 | Q179: 343.81 | R179: 259.46 | S179: 277.04 | T179: 248.51 | U179: 259.08 | V179: 244.47 | W179: 238.50
B180: ENSMUSG00000033065 | C180: Pfkm | D180: 18642 | E180: 1584.296542 | F180: -0.533701846 | G180: 0.05939601441 | H180: -8.985482465 | I180: 2.58E-19 | J180: 2.51E-17 | K180: 166.0061992 | L180: 64.69 | M180: 64.73 | N180: 64.51 | O180: 75.99 | P180: 75.67 | Q180: 65.42 | R180: 104.39 | S180: 96.03 | T180: 96.74 | U180: 102.71 | V180: 97.82 | W180: 92.87
B181: ENSMUSG00000033059 | C181: Pygb | D181: 110078 | E181: 4534.899848 | F181: -0.5452257254 | G181: 0.06082742132 | H181: -8.963485769 | I181: 3.15E-19 | J181: 3.05E-17 | K181: 165.1632136 | L181: 185.89 | M181: 169.93 | N181: 183.65 | O181: 206.45 | P181: 204.72 | Q181: 162.54 | R181: 265.79 | S181: 270.10 | T181: 264.39 | U181: 271.81 | V181: 274.02 | W181: 263.61
B182: ENSMUSG00000035829 | C182: Ppp1r26 | D182: 241289 | E182: 144.0387501 | F182: -1.071363647 | G182: 0.1196341712 | H182: -8.955331374 | I182: 3.39E-19 | J182: 3.24E-17 | K182: 164.8885694 | L182: 4.15 | M182: 4.17 | N182: 3.37 | O182: 5.74 | P182: 4.15 | Q182: 4.53 | R182: 8.80 | S182: 8.75 | T182: 10.03 | U182: 10.39 | V182: 8.05 | W182: 8.97
B183: ENSMUSG00000022500 | C183: Litaf | D183: 56722 | E183: 959.0164115 | F183: 0.6633074867 | G183: 0.07406898658 | H183: 8.955266129 | I183: 3.39E-19 | J183: 3.24E-17 | K183: 164.8885694 | L183: 69.40 | M183: 62.23 | N183: 74.45 | O183: 72.59 | P183: 64.19 | Q183: 77.70 | R183: 47.30 | S183: 45.27 | T183: 41.65 | U183: 39.39 | V183: 43.91 | W183: 45.24
B184: ENSMUSG00000043909 | C184: Trp53bp1 | D184: 27223 | E184: 1008.229315 | F184: -0.7914509147 | G184: 0.08852550221 | H184: -8.940371925 | I184: 3.88E-19 | J184: 3.69E-17 | K184: 164.3270538 | L184: 33.58 | M184: 34.33 | N184: 32.63 | O184: 46.62 | P184: 36.66 | Q184: 39.35 | R184: 62.14 | S184: 74.30 | T184: 62.20 | U184: 57.28 | V184: 63.04 | W184: 63.87
B185: ENSMUSG00000044676 | C185: Zfp612 | D185: 234725 | E185: 164.0500423 | F185: -1.311777155 | G185: 0.1470547871 | H185: -8.920329496 | I185: 4.65E-19 | J185: 4.40E-17 | K185: 163.564406 | L185: 4.82 | M185: 4.71 | N185: 3.65 | O185: 5.41 | P185: 4.32 | Q185: 3.87 | R185: 12.51 | S185: 13.22 | T185: 10.80 | U185: 11.68 | V185: 8.87 | W185: 9.27
B186: ENSMUSG00000030527 | C186: Crtc3 | D186: 70461 | E186: 1467.280381 | F186: -0.9769721302 | G186: 0.109629779 | H186: -8.911557967 | I186: 5.03E-19 | J186: 4.74E-17 | K186: 163.2446491 | L186: 51.97 | M186: 48.13 | N186: 44.09 | O186: 54.04 | P186: 55.73 | Q186: 47.00 | R186: 89.40 | S186: 94.04 | T186: 102.38 | U186: 100.05 | V186: 98.38 | W186: 102.38
B187: ENSMUSG00000005611 | C187: Irag1 | D187: 17540 | E187: 6694.38483 | F187: -0.8552642506 | G187: 0.09615292802 | H187: -8.894833139 | I187: 5.85E-19 | J187: 5.48E-17 | K187: 162.6139292 | L187: 218.18 | M187: 239.38 | N187: 194.19 | O187: 228.69 | P187: 236.32 | Q187: 183.28 | R187: 352.58 | S187: 434.75 | T187: 376.31 | U187: 416.89 | V187: 366.09 | W187: 385.77
B188: ENSMUSG00000021242 | C188: Npc2 | D188: 67963 | E188: 3012.778264 | F188: 0.5705713438 | G188: 0.06420921164 | H188: 8.886129096 | I188: 6.33E-19 | J188: 5.89E-17 | K188: 162.297505 | L188: 214.93 | M188: 198.96 | N188: 224.74 | O188: 199.74 | P188: 211.22 | Q188: 230.43 | R188: 158.83 | S188: 136.10 | T188: 151.00 | U188: 131.15 | V188: 140.19 | W188: 137.86
B189: ENSMUSG00000048387 | C189: Osr1 | D189: 23967 | E189: 1001.031131 | F189: -1.293076155 | G189: 0.145802154 | H189: -8.86870406 | I189: 7.40E-19 | J189: 6.85E-17 | K189: 161.6410445 | L189: 26.46 | M189: 28.40 | N189: 29.62 | O189: 36.25 | P189: 28.79 | Q189: 23.90 | R189: 92.26 | S189: 70.74 | T189: 68.81 | U189: 75.56 | V189: 56.63 | W189: 58.79
B190: ENSMUSG00000032575 | C190: Manf | D190: 74840 | E190: 1309.929612 | F190: 0.9638043563 | G190: 0.108689718 | H190: 8.867484195 | I190: 7.48E-19 | J190: 6.89E-17 | K190: 161.617019 | L190: 98.10 | M190: 118.54 | N190: 124.55 | O190: 86.66 | P190: 102.82 | Q190: 94.91 | R190: 54.39 | S190: 50.76 | T190: 51.40 | U190: 59.86 | V190: 52.12 | W190: 50.27
B191: ENSMUSG00000022836 | C191: Mylk | D191: 107589 | E191: 30643.89326 | F191: -0.715095287 | G191: 0.08117541353 | H191: -8.809259552 | I191: 1.26E-18 | J191: 1.15E-16 | K191: 159.3775832 | L191: 1052.23 | M191: 1184.33 | N191: 1003.35 | O191: 1179.62 | P191: 1244.14 | Q191: 947.43 | R191: 1598.11 | S191: 1930.93 | T191: 1706.75 | U191: 1901.04 | V191: 1772.66 | W191: 1842.41
B192: ENSMUSG00000069682 | C192: Gm10275 | D192: 19897 | E192: 6062.633065 | F192: 0.7688684019 | G192: 0.08789766682 | H192: 8.74731298 | I192: 2.18E-18 | J192: 1.99E-16 | K192: 157.0093435 | L192: 461.03 | M192: 415.06 | N192: 486.40 | O192: 421.56 | P192: 513.19 | Q192: 457.69 | R192: 283.73 | S192: 245.59 | T192: 261.88 | U192: 274.71 | V192: 256.94 | W192: 280.90
B193: ENSMUSG00000004791 | C193: Pgf | D193: 18654 | E193: 186.589627 | F193: 2.618611211 | G193: 0.3003360067 | H193: 8.718938633 | I193: 2.81E-18 | J193: 2.53E-16 | K193: 155.9606664 | L193: 18.89 | M193: 14.81 | N193: 20.29 | O193: 13.36 | P193: 14.04 | Q193: 18.92 | R193: 2.33 | S193: 1.81 | T193: 2.79 | U193: 2.82 | V193: 2.15 | W193: 4.23
B194: ENSMUSG00000045679 | C194: Pqlc3 | D194: 217430 | E194: 450.7408664 | F194: 0.9380171398 | G194: 0.1075854599 | H194: 8.718809591 | I194: 2.81E-18 | J194: 2.53E-16 | K194: 155.9606664 | L194: 37.73 | M194: 29.78 | N194: 40.85 | O194: 33.49 | P194: 34.90 | Q194: 32.51 | R194: 18.46 | S194: 17.68 | T194: 17.90 | U194: 17.40 | V194: 18.72 | W194: 17.99
B195: ENSMUSG00000021823 | C195: Vcl | D195: 22330 | E195: 14243.02451 | F195: -0.7346454381 | G195: 0.08429213614 | H195: -8.715468272 | I195: 2.90E-18 | J195: 2.60E-16 | K195: 155.855465 | L195: 550.28 | M195: 496.90 | N195: 497.81 | O195: 680.02 | P195: 593.31 | Q195: 569.25 | R195: 828.72 | S195: 980.31 | T195: 921.73 | U195: 954.55 | V195: 984.05 | W195: 907.60
B196: ENSMUSG00000019907 | C196: Ppp1r12a | D196: 17931 | E196: 13457.24729 | F196: -0.9760141403 | G196: 0.1120982876 | H196: -8.706771186 | I196: 3.13E-18 | J196: 2.79E-16 | K196: 155.5450068 | L196: 411.19 | M196: 379.02 | N196: 347.99 | O196: 625.84 | P196: 495.43 | Q196: 473.64 | R196: 819.68 | S196: 969.51 | T196: 914.84 | U196: 920.63 | V196: 797.28 | W196: 896.00
B197: ENSMUSG00000023960 | C197: Enpp5 | D197: 83965 | E197: 1568.652649 | F197: -0.7487372394 | G197: 0.08612194997 | H197: -8.693918793 | I197: 3.50E-18 | J197: 3.11E-16 | K197: 155.0758 | L197: 43.89 | M197: 40.75 | N197: 40.11 | O197: 49.70 | P197: 41.31 | Q197: 40.51 | R197: 67.52 | S197: 71.46 | T197: 74.59 | U197: 66.46 | V197: 65.35 | W197: 81.01
B198: ENSMUSG00000027827 | C198: Kcnab1 | D198: 16497 | E198: 4933.372891 | F198: -0.8301962389 | G198: 0.09565360067 | H198: -8.679194856 | I198: 3.99E-18 | J198: 3.52E-16 | K198: 154.5357187 | L198: 162.29 | M198: 164.88 | N198: 156.06 | O198: 239.20 | P198: 207.83 | Q198: 156.61 | R198: 304.14 | S198: 366.79 | T198: 305.41 | U198: 318.61 | V198: 302.90 | W198: 315.52
B199: ENSMUSG00000018750 | C199: Zbtb4 | D199: 75580 | E199: 2959.60238 | F199: -0.6311802188 | G199: 0.07287134409 | H199: -8.661569601 | I199: 4.65E-18 | J199: 4.09E-16 | K199: =-10*LOG10(J199) -> 153.8858763 | L199: 112.51 | M199: 108.49 | N199: 98.71 | O199: 127.25 | P199: 110.24 | Q199: 113.53 | R199: 169.39 | S199: 156.26 | T199: 182.41 | U199: 184.00 | V199: 161.58 | W199: 175.87
B200: ENSMUSG00000032366 | C200: Tpm1 | D200: 22003 | E200: 26511.28173 | F200: -0.6017651018 | G200: 0.06948815313 | H200: -8.659966839 | I200: 4.72E-18 | J200: 4.12E-16 | K200: 153.8471364 | L200: 1074.65 | M200: 1025.33 | N200: 1057.28 | O200: 1182.70 | P200: 1282.73 | Q200: 962.43 | R200: 1589.45 | S200: 1834.84 | T200: 1517.16 | U200: 1748.70 | V200: 1693.51 | W200: 1523.40
B201: ENSMUSG00000031292 | C201: Cdkl5 | D201: 382253 | E201: 2644.007204 | F201: -1.022139601 | G201: 0.1181066813 | H201: -8.654375771 | I201: 4.96E-18 | J201: 4.31E-16 | K201: 153.6564057 | L201: 66.15 | M201: 73.37 | N201: 54.30 | O201: 109.42 | P201: 84.93 | Q201: 83.94 | R201: 146.17 | S201: 157.53 | T201: 169.73 | U201: 173.61 | V201: 145.32 | W201: 156.64
B202: ENSMUSG00000021592 | C202: Arsk | D202: 77041 | E202: 477.0078099 | F202: -0.8482663514 | G202: 0.09811307875 | H202: -8.645803008 | I202: 5.34E-18 | J202: 4.62E-16 | K202: 153.3522594 | L202: 17.94 | M202: 15.56 | N202: 14.83 | O202: 22.99 | P202: 17.22 | Q202: 16.66 | R202: 33.07 | S202: 33.26 | T202: 31.27 | U202: 32.06 | V202: 26.01 | W202: 32.43
... 4298 more rows
